Workbook

Sheet Chart
B2: ='NLC09'!AP182 -> STL | C2: ='NLC09'!AQ182 -> 0 | D2: ='NLC09'!AR182 -> 0.5617283951
B3: ='NLC09'!AP183 -> CHC | C3: ='NLC09'!AQ183 -> 7.5 | D3: ='NLC09'!AR183 -> 0.5155279503
B4: ='NLC09'!AP184 -> MIL | C4: ='NLC09'!AQ184 -> 11 | D4: ='NLC09'!AR184 -> 0.4938271605
B5: ='NLC09'!AP185 -> CIN | C5: ='NLC09'!AQ185 -> 13 | D5: ='NLC09'!AR185 -> 0.4814814815
B6: ='NLC09'!AP186 -> HOU | C6: ='NLC09'!AQ186 -> 17 | D6: ='NLC09'!AR186 -> 0.4567901235
B7: ='NLC09'!AP187 -> PIT | C7: ='NLC09'!AQ187 -> 28.5 | D7: ='NLC09'!AR187 -> 0.3850931677
B12: MLB.mobi Scores
B15: PHP Results
B18: HTML Results
F38: Note: You must enable macros for this workbook to update correctly

Sheet NLC09
A1: NLC09 | B1: CHC | C1: W | D1: L | F1: CIN | G1: W | H1: L | J1: HOU | K1: W | L1: L | N1: MIL | O1: W | P1: L | R1: PIT | S1: W | T1: L | V1: STL | W1: W | X1: L | AA1: =B1 -> CHC | AB1: =F1 -> CIN | AC1: =J1 -> HOU | AD1: =N1 -> MIL | AE1: =R1 -> PIT | AF1: =V1 -> STL | AH1: =AA1 -> CHC | AI1: CIN | AJ1: HOU | AK1: MIL | AL1: PIT | AM1: STL
A2: 2009-04-05 | B2: 0 | C2: 0 | D2: 0 | F2: 0 | G2: 0 | H2: 0 | J2: 0 | K2: 0 | L2: 0 | N2: 0 | O2: 0 | P2: 0 | R2: 0 | S2: 0 | T2: 0 | V2: 0 | W2: 0 | X2: 0 | AA2: 0 | AB2: 0 | AC2: 0 | AD2: 0 | AE2: 0 | AF2: 0 | AH2: 0 | AI2: 0 | AJ2: 0 | AK2: 0 | AL2: 0 | AM2: 0
A3: 2009-04-06 | B3: 1 | C3: =C2+IF(B3>0,B3,0) -> 1 | D3: =D2-IF(B3<0,B3,0) -> 0 | F3: -1 | G3: =G2+IF(F3>0,F3,0) -> 0 | H3: =H2-IF(F3<0,F3,0) -> 1 | J3: -1 | K3: =K2+IF(J3>0,J3,0) -> 0 | L3: =L2-IF(J3<0,J3,0) -> 1 | N3: 0 | O3: =O2+IF(N3>0,N3,0) -> 0 | P3: =P2-IF(N3<0,N3,0) -> 0 | R3: 1 | S3: =S2+IF(R3>0,R3,0) -> 1 | T3: =T2-IF(R3<0,R3,0) -> 0 | V3: -1 | W3: =W2+IF(V3>0,V3,0) -> 0 | X3: =X2-IF(V3<0,V3,0) -> 1 | AA3: =C3-D3 -> 1 | AB3: =G3-H3 -> -1 | AC3: =K3-L3 -> -1 | AD3: =O3-P3 -> 0 | AE3: =S3-T3 -> 1 | AF3: =W3-X3 -> -1 | AH3: =(MAX($AA3:$AF3)-AA3)/2 -> 0 | AI3: =(MAX($AA3:$AF3)-AB3)/2 -> 1 | AJ3: =(MAX($AA3:$AF3)-AC3)/2 -> 1 | AK3: =(MAX($AA3:$AF3)-AD3)/2 -> 0.5 | AL3: =(MAX($AA3:$AF3)-AE3)/2 -> 0 | AM3: =(MAX($AA3:$AF3)-AF3)/2 -> 1
A4: 2009-04-07 | B4: -1 | C4: 1 | D4: 1 | F4: 0 | G4: 0 | H4: 1 | J4: 1 | K4: 1 | L4: 1 | N4: -1 | O4: 0 | P4: 1 | R4: -1 | S4: 1 | T4: 1 | V4: 1 | W4: 1 | X4: 1 | AA4: 0 | AB4: -1 | AC4: 0 | AD4: =O4-P4 -> -1 | AE4: 0 | AF4: 0 | AH4: 0 | AI4: 0.5 | AJ4: 0 | AK4: 0.5 | AL4: 0 | AM4: 0
A5: 2009-04-08 | B5: 1 | C5: 2 | D5: 1 | F5: -1 | G5: 0 | H5: 2 | J5: -1 | K5: 1 | L5: 2 | N5: 1 | O5: 1 | P5: 1 | R5: 1 | S5: 2 | T5: 1 | V5: -1 | W5: 1 | X5: 2 | AA5: 1 | AB5: -2 | AC5: -1 | AD5: =O5-P5 -> 0 | AE5: 1 | AF5: -1 | AH5: 0 | AI5: 1.5 | AJ5: 1 | AK5: 0.5 | AL5: 0 | AM5: 1
A6: 2009-04-09 | B6: 0 | C6: 2 | D6: 1 | F6: 1 | G6: 1 | H6: 2 | J6: 0 | K6: 1 | L6: 2 | N6: -1 | O6: 1 | P6: 2 | R6: -1 | S6: 2 | T6: 2 | V6: 1 | W6: 2 | X6: 2 | AA6: 1 | AB6: -1 | AC6: -1 | AD6: =O6-P6 -> -1 | AE6: 0 | AF6: 0 | AH6: 0 | AI6: 1 | AJ6: 1 | AK6: 1 | AL6: 0.5 | AM6: 0.5
A7: 2009-04-10 | B7: -1 | C7: 2 | D7: 2 | F7: 0 | G7: 1 | H7: 2 | J7: -1 | K7: 1 | L7: 3 | N7: 1 | O7: 2 | P7: 2 | R7: 0 | S7: 2 | T7: 2 | V7: 1 | W7: 3 | X7: 2 | AA7: 0 | AB7: -1 | AC7: -2 | AD7: =O7-P7 -> 0 | AE7: 0 | AF7: 1 | AH7: 0.5 | AI7: 1 | AJ7: 1.5 | AK7: 0.5 | AL7: 0.5 | AM7: 0
A8: 2009-04-11 | B8: 1 | C8: 3 | D8: 2 | F8: -1 | G8: 1 | H8: 3 | J8: -1 | K8: 1 | L8: 4 | N8: -1 | O8: 2 | P8: 3 | R8: 1 | S8: 3 | T8: 2 | V8: 1 | W8: 4 | X8: 2 | AA8: 1 | AB8: -2 | AC8: -3 | AD8: =O8-P8 -> -1 | AE8: 1 | AF8: 2 | AH8: 0.5 | AI8: 2 | AJ8: 2.5 | AK8: 1.5 | AL8: 0.5 | AM8: 0
A9: 2009-04-12 | B9: 1 | C9: 4 | D9: 2 | F9: 1 | G9: 2 | H9: 3 | J9: -1 | K9: 1 | L9: 5 | N9: -1 | O9: =O8+IF(N9>0,N9,0) -> 2 | P9: 4 | R9: -1 | S9: 3 | T9: 3 | V9: 1 | W9: 5 | X9: 2 | AA9: 2 | AB9: -1 | AC9: -4 | AD9: -2 | AE9: 0 | AF9: 3 | AH9: 0.5 | AI9: 2 | AJ9: 3.5 | AK9: 2.5 | AL9: 1.5 | AM9: 0
A10: 2009-04-13 | B10: 1 | C10: 5 | D10: 2 | F10: 1 | G10: 3 | H10: 3 | J10: -1 | K10: 1 | L10: 6 | N10: -1 | O10: 2 | P10: 5 | R10: 1 | S10: 4 | T10: 3 | V10: 1 | W10: 6 | X10: 2 | AA10: 3 | AB10: 0 | AC10: -5 | AD10: -3 | AE10: 1 | AF10: 4 | AH10: 0.5 | AI10: 2 | AJ10: 4.5 | AK10: 3.5 | AL10: 1.5 | AM10: 0
A11: 2009-04-14 | B11: 0 | C11: 5 | D11: 2 | F11: 1 | G11: 4 | H11: 3 | J11: 0 | K11: 1 | L11: 6 | N11: -1 | O11: 2 | P11: 6 | R11: 0 | S11: 4 | T11: 3 | V11: -1 | W11: 6 | X11: 3 | AA11: 3 | AB11: 1 | AC11: -5 | AD11: -4 | AE11: 1 | AF11: 3 | AH11: 0 | AI11: 1 | AJ11: 4 | AK11: 3.5 | AL11: 1 | AM11: 0
A12: 2009-04-15 | B12: -1 | C12: 5 | D12: 3 | F12: -1 | G12: 4 | H12: 4 | J12: 1 | K12: 2 | L12: 6 | N12: 1 | O12: 3 | P12: 6 | R12: -1 | S12: 4 | T12: 4 | V12: 1 | W12: 7 | X12: 3 | AA12: 2 | AB12: 0 | AC12: -4 | AD12: -3 | AE12: 0 | AF12: 4 | AH12: 1 | AI12: 2 | AJ12: 4 | AK12: 3.5 | AL12: 2 | AM12: 0
A13: 2009-04-16 | B13: -1 | C13: 5 | D13: 4 | F13: 0 | G13: 4 | H13: 4 | J13: 1 | K13: 3 | L13: 6 | N13: 0 | O13: 3 | P13: 6 | R13: -1 | S13: 4 | T13: 5 | V13: 1 | W13: 8 | X13: 3 | AA13: 1 | AB13: 0 | AC13: -3 | AD13: -3 | AE13: -1 | AF13: 5 | AH13: 2 | AI13: 2.5 | AJ13: 4 | AK13: 4 | AL13: 3 | AM13: 0
A14: 2009-04-17 | B14: 1 | C14: 6 | D14: 4 | F14: 1 | G14: 5 | H14: 4 | J14: -1 | K14: 3 | L14: 7 | N14: -1 | O14: 3 | P14: 7 | R14: 1 | S14: 5 | T14: 5 | V14: -1 | W14: 8 | X14: 4 | AA14: 2 | AB14: 1 | AC14: -4 | AD14: -4 | AE14: 0 | AF14: 4 | AH14: 1 | AI14: 1.5 | AJ14: 4 | AK14: 4 | AL14: 2 | AM14: 0
A15: 2009-04-18 | B15: 1 | C15: 7 | D15: 4 | F15: -1 | G15: 5 | H15: 5 | J15: 1 | K15: 4 | L15: 7 | N15: -1 | O15: 3 | P15: 8 | R15: 1 | S15: 6 | T15: 5 | V15: -1 | W15: 8 | X15: 5 | AA15: 3 | AB15: 0 | AC15: -3 | AD15: -5 | AE15: 1 | AF15: 3 | AH15: 0 | AI15: 1.5 | AJ15: 3 | AK15: 4 | AL15: 1 | AM15: 0
A16: 2009-04-19 | B16: 0 | C16: 7 | D16: 4 | F16: 1 | G16: 6 | H16: 5 | J16: -1 | K16: 4 | L16: 8 | N16: 1 | O16: 4 | P16: 8 | R16: -1 | S16: 6 | T16: 6 | V16: 0 | W16: 8 | X16: 5 | AA16: 3 | AB16: 1 | AC16: -4 | AD16: -4 | AE16: 0 | AF16: 3 | AH16: 0 | AI16: 1 | AJ16: 3.5 | AK16: 3.5 | AL16: 1.5 | AM16: 0
A17: 2009-04-20 | B17: 0 | C17: 7 | D17: 4 | F17: 1 | G17: 7 | H17: 5 | J17: -1 | K17: 4 | L17: 9 | N17: 0 | O17: 4 | P17: 8 | R17: 1 | S17: 7 | T17: 6 | V17: 0 | W17: 8 | X17: 5 | AA17: 3 | AB17: 2 | AC17: -5 | AD17: -4 | AE17: 1 | AF17: 3 | AH17: 0 | AI17: 0.5 | AJ17: 4 | AK17: 3.5 | AL17: 1 | AM17: 0
A18: 2009-04-21 | B18: 1 | C18: 8 | D18: 4 | F18: -1 | G18: 7 | H18: 6 | J18: 1 | K18: 5 | L18: 9 | N18: -1 | O18: 4 | P18: 9 | R18: 1 | S18: 8 | T18: 6 | V18: 1 | W18: 9 | X18: 5 | AA18: 4 | AB18: 1 | AC18: -4 | AD18: -5 | AE18: 2 | AF18: 4 | AH18: 0 | AI18: 1.5 | AJ18: 4 | AK18: 4.5 | AL18: 1 | AM18: 0
A19: 2009-04-22 | B19: -1 | C19: 8 | D19: 5 | F19: 1 | G19: 8 | H19: 6 | J19: 1 | K19: 6 | L19: 9 | N19: 1 | O19: 5 | P19: 9 | R19: 1 | S19: 9 | T19: 6 | V19: 1 | W19: 10 | X19: 5 | AA19: 3 | AB19: 2 | AC19: -3 | AD19: -4 | AE19: 3 | AF19: 5 | AH19: 1 | AI19: 1.5 | AJ19: 4 | AK19: 4.5 | AL19: 1 | AM19: 0
A20: 2009-04-23 | B20: -1 | C20: 8 | D20: 6 | F20: 1 | G20: 9 | H20: 6 | J20: -1 | K20: 6 | L20: 10 | N20: 1 | O20: 6 | P20: 9 | R20: 0 | S20: 9 | T20: 6 | V20: 1 | W20: 11 | X20: 5 | AA20: 2 | AB20: 3 | AC20: -4 | AD20: -3 | AE20: 3 | AF20: 6 | AH20: 2 | AI20: 1.5 | AJ20: 5 | AK20: 4.5 | AL20: 1.5 | AM20: 0
A21: 2009-04-24 | B21: -1 | C21: 8 | D21: 7 | F21: -1 | G21: 9 | H21: 7 | J21: -1 | K21: 6 | L21: 11 | N21: 1 | O21: 7 | P21: 9 | R21: -1 | S21: 9 | T21: 7 | V21: 1 | W21: 12 | X21: 5 | AA21: 1 | AB21: 2 | AC21: -5 | AD21: -2 | AE21: 2 | AF21: 7 | AH21: 3 | AI21: 2.5 | AJ21: 6 | AK21: 4.5 | AL21: 2.5 | AM21: 0
A22: 2009-04-25 | B22: -1 | C22: 8 | D22: 8 | F22: -1 | G22: 9 | H22: 8 | J22: -1 | K22: 6 | L22: 12 | N22: 1 | O22: 8 | P22: 9 | R22: 1 | S22: 10 | T22: 7 | V22: 1 | W22: 13 | X22: 5 | AA22: 0 | AB22: 1 | AC22: -6 | AD22: -1 | AE22: 3 | AF22: 8 | AH22: 4 | AI22: 3.5 | AJ22: 7 | AK22: 4.5 | AL22: 2.5 | AM22: 0
A23: 2009-04-26 | B23: 1 | C23: 9 | D23: 8 | F23: 1 | G23: 10 | H23: 8 | J23: 1 | K23: 7 | L23: 12 | N23: -1 | O23: 8 | P23: 10 | R23: 1 | S23: 11 | T23: 7 | V23: -1 | W23: 13 | X23: 6 | AA23: 1 | AB23: 2 | AC23: -5 | AD23: -2 | AE23: 4 | AF23: 7 | AH23: 3 | AI23: 2.5 | AJ23: 6 | AK23: 4.5 | AL23: 1.5 | AM23: 0
A24: 2009-04-27 | B24: -1 | C24: 9 | D24: 9 | F24: -1 | G24: 10 | H24: 9 | J24: 1 | K24: 8 | L24: 12 | N24: 1 | O24: 9 | P24: 10 | R24: -1 | S24: 11 | T24: 8 | V24: 1 | W24: 14 | X24: 6 | AA24: 0 | AB24: 1 | AC24: -4 | AD24: -1 | AE24: 3 | AF24: 8 | AH24: 4 | AI24: 3.5 | AJ24: 6 | AK24: 4.5 | AL24: 2.5 | AM24: 0
A25: 2009-04-28 | B25: 1 | C25: 10 | D25: 9 | F25: -1 | G25: 10 | H25: 10 | J25: 1 | K25: 9 | L25: 12 | N25: 1 | O25: 10 | P25: 10 | R25: -1 | S25: 11 | T25: 9 | V25: -1 | W25: 14 | X25: 7 | AA25: 1 | AB25: 0 | AC25: -3 | AD25: 0 | AE25: 2 | AF25: 7 | AH25: 3 | AI25: 3.5 | AJ25: 5 | AK25: 3.5 | AL25: 2.5 | AM25: 0
A26: 2009-04-29 | B26: -1 | C26: 10 | D26: 10 | F26: 1 | G26: 11 | H26: 10 | J26: -1 | K26: 9 | L26: 13 | N26: 1 | O26: 11 | P26: 10 | R26: -1 | S26: 11 | T26: 10 | V26: 1 | W26: 15 | X26: 7 | AA26: 0 | AB26: 1 | AC26: -4 | AD26: 1 | AE26: 1 | AF26: 8 | AH26: 4 | AI26: 3.5 | AJ26: 6 | AK26: 3.5 | AL26: 3.5 | AM26: 0
A27: 2009-04-30 | B27: -1 | C27: 10 | D27: 11 | F27: 0 | G27: 11 | H27: 10 | J27: 0 | K27: 9 | L27: 13 | N27: 1 | O27: 12 | P27: 10 | R27: 0 | S27: 11 | T27: 10 | V27: 1 | W27: 16 | X27: 7 | AA27: -1 | AB27: 1 | AC27: -4 | AD27: 2 | AE27: 1 | AF27: 9 | AH27: 5 | AI27: 4 | AJ27: 6.5 | AK27: 3.5 | AL27: 4 | AM27: 0
A28: 2009-05-01 | B28: 1 | C28: 11 | D28: 11 | F28: 1 | G28: 12 | H28: 10 | J28: -1 | K28: 9 | L28: 14 | N28: -1 | O28: 12 | P28: 11 | R28: -1 | S28: 11 | T28: 11 | V28: 1 | W28: 17 | X28: 7 | AA28: 0 | AB28: 2 | AC28: -5 | AD28: 1 | AE28: 0 | AF28: 10 | AH28: 5 | AI28: 4 | AJ28: 7.5 | AK28: 4.5 | AL28: 5 | AM28: 0
A29: 2009-05-02 | B29: 1 | C29: 12 | D29: 11 | F29: -1 | G29: 12 | H29: 11 | J29: 1 | K29: 10 | L29: 14 | N29: -1 | O29: 12 | P29: 12 | R29: 1 | S29: 12 | T29: 11 | V29: -1 | W29: 17 | X29: 8 | AA29: 1 | AB29: 1 | AC29: -4 | AD29: 0 | AE29: 1 | AF29: 9 | AH29: 4 | AI29: 4 | AJ29: 6.5 | AK29: 4.5 | AL29: 4 | AM29: 0
A30: 2009-05-03 | B30: 1 | C30: 13 | D30: 11 | F30: 1 | G30: 13 | H30: 11 | J30: 1 | K30: 11 | L30: 14 | N30: 1 | O30: 13 | P30: 12 | R30: -1 | S30: 12 | T30: 12 | V30: 0 | W30: 17 | X30: 8 | AA30: 2 | AB30: 2 | AC30: -3 | AD30: 1 | AE30: 0 | AF30: 9 | AH30: 3.5 | AI30: 3.5 | AJ30: 6 | AK30: 4 | AL30: 4.5 | AM30: 0
A31: 2009-05-04 | B31: 1 | C31: 14 | D31: 11 | F31: -1 | G31: 13 | H31: 12 | J31: -1 | K31: 11 | L31: 15 | N31: 1 | O31: 14 | P31: 12 | R31: -1 | S31: 12 | T31: 13 | V31: -1 | W31: 17 | X31: 9 | AA31: 3 | AB31: 1 | AC31: -4 | AD31: 2 | AE31: -1 | AF31: 8 | AH31: 2.5 | AI31: 3.5 | AJ31: 6 | AK31: 3 | AL31: 4.5 | AM31: 0
A32: 2009-05-05 | B32: -1 | C32: 14 | D32: 12 | F32: 1 | G32: 14 | H32: 12 | J32: -1 | K32: 11 | L32: 16 | N32: 1 | O32: 15 | P32: 12 | R32: -1 | S32: 12 | T32: 14 | V32: -1 | W32: 17 | X32: 10 | AA32: 2 | AB32: 2 | AC32: -5 | AD32: 3 | AE32: -2 | AF32: 7 | AH32: 2.5 | AI32: 2.5 | AJ32: 6 | AK32: 2 | AL32: 4.5 | AM32: 0
A33: 2009-05-06 | B33: 1 | C33: 15 | D33: 12 | F33: -1 | G33: 14 | H33: 13 | J33: -1 | K33: 11 | L33: 17 | N33: 1 | O33: 16 | P33: 12 | R33: -1 | S33: 12 | T33: 15 | V33: 1 | W33: 18 | X33: 10 | AA33: 3 | AB33: 1 | AC33: -6 | AD33: 4 | AE33: -3 | AF33: 8 | AH33: 2.5 | AI33: 3.5 | AJ33: 7 | AK33: 2 | AL33: 5.5 | AM33: 0
A34: 2009-05-07 | B34: 1 | C34: 16 | D34: 12 | F34: 1 | G34: 15 | H34: 13 | J34: -1 | K34: 11 | L34: 18 | N34: -1 | O34: 16 | P34: 13 | R34: -1 | S34: 12 | T34: 16 | V34: 1 | W34: 19 | X34: 10 | AA34: 4 | AB34: 2 | AC34: -7 | AD34: 3 | AE34: -4 | AF34: 9 | AH34: 2.5 | AI34: 3.5 | AJ34: 8 | AK34: 3 | AL34: 6.5 | AM34: 0
A35: 2009-05-08 | B35: -1 | C35: 16 | D35: 13 | F35: 1 | G35: 16 | H35: 13 | J35: 1 | K35: 12 | L35: 18 | N35: 1 | O35: 17 | P35: 13 | R35: -1 | S35: 12 | T35: 17 | V35: -1 | W35: 19 | X35: 11 | AA35: 3 | AB35: 3 | AC35: -6 | AD35: 4 | AE35: -5 | AF35: 8 | AH35: 2.5 | AI35: 2.5 | AJ35: 7 | AK35: 2 | AL35: 6.5 | AM35: 0
A36: 2009-05-09 | B36: -1 | C36: 16 | D36: 14 | F36: 1 | G36: 17 | H36: 13 | J36: 1 | K36: 13 | L36: 18 | N36: 1 | O36: 18 | P36: 13 | R36: -1 | S36: 12 | T36: 18 | V36: -1 | W36: 19 | X36: 12 | AA36: 2 | AB36: 4 | AC36: -5 | AD36: 5 | AE36: -6 | AF36: 7 | AH36: 2.5 | AI36: 1.5 | AJ36: 6 | AK36: 1 | AL36: 6.5 | AM36: 0
A37: 2009-05-10 | B37: 1 | C37: 17 | D37: 14 | F37: -1 | G37: 17 | H37: 14 | J37: 1 | K37: 14 | L37: 18 | N37: -1 | O37: 18 | P37: 14 | R37: -1 | S37: 12 | T37: 19 | V37: 1 | W37: 20 | X37: 12 | AA37: 3 | AB37: 3 | AC37: -4 | AD37: 4 | AE37: -7 | AF37: 8 | AH37: 2.5 | AI37: 2.5 | AJ37: 6 | AK37: 2 | AL37: 7.5 | AM37: 0
A38: 2009-05-11 | B38: 0 | C38: 17 | D38: 14 | F38: 1 | G38: 18 | H38: 14 | J38: 0 | K38: 14 | L38: 18 | N38: 0 | O38: 18 | P38: 14 | R38: 0 | S38: 12 | T38: 19 | V38: 0 | W38: 20 | X38: 12 | AA38: =C38-D38 -> 3 | AB38: =G38-H38 -> 4 | AC38: =K38-L38 -> -4 | AD38: =O38-P38 -> 4 | AE38: =S38-T38 -> -7 | AF38: =W38-X38 -> 8 | AH38: =(MAX($AA38:$AF38)-AA38)/2 -> 2.5 | AI38: =(MAX($AA38:$AF38)-AB38)/2 -> 2 | AJ38: =(MAX($AA38:$AF38)-AC38)/2 -> 6 | AK38: =(MAX($AA38:$AF38)-AD38)/2 -> 2 | AL38: =(MAX($AA38:$AF38)-AE38)/2 -> 7.5 | AM38: =(MAX($AA38:$AF38)-AF38)/2 -> 0
A39: 2009-05-12 | B39: 1 | C39: =C38+IF(B39>0,B39,0) -> 18 | D39: =D38-IF(B39<0,B39,0) -> 14 | F39: 1 | G39: =G38+IF(F39>0,F39,0) -> 19 | H39: =H38-IF(F39<0,F39,0) -> 14 | J39: -1 | K39: =K38+IF(J39>0,J39,0) -> 14 | L39: =L38-IF(J39<0,J39,0) -> 19 | N39: 1 | O39: =O38+IF(N39>0,N39,0) -> 19 | P39: =P38-IF(N39<0,N39,0) -> 14 | R39: 1 | S39: 13 | T39: 19 | V39: -1 | W39: =W38+IF(V39>0,V39,0) -> 20 | X39: =X38-IF(V39<0,V39,0) -> 13 | AA39: 4 | AB39: 5 | AC39: -5 | AD39: 5 | AE39: -6 | AF39: 7 | AH39: 1.5 | AI39: 1 | AJ39: 6 | AK39: 1 | AL39: 6.5 | AM39: 0
A40: 2009-05-13 | B40: 1 | C40: 19 | D40: 14 | F40: 1 | G40: 20 | H40: 14 | J40: 1 | K40: 15 | L40: 19 | N40: 1 | O40: 20 | P40: 14 | R40: 1 | S40: 14 | T40: 19 | V40: -1 | W40: 20 | X40: 14 | AA40: 5 | AB40: 6 | AC40: -4 | AD40: 6 | AE40: -5 | AF40: 6 | AH40: 0.5 | AI40: 0 | AJ40: 5 | AK40: 0 | AL40: 5.5 | AM40: 0
A41: 2009-05-14 | B41: 1 | C41: 20 | D41: 14 | F41: 0 | G41: 20 | H41: 14 | J41: 1 | K41: 16 | L41: 19 | N41: 1 | O41: 21 | P41: 14 | R41: -1 | S41: 14 | T41: 20 | V41: 1 | W41: 21 | X41: 14 | AA41: 6 | AB41: 6 | AC41: -3 | AD41: 7 | AE41: -6 | AF41: 7 | AH41: 0.5 | AI41: 0.5 | AJ41: 5 | AK41: 0 | AL41: 6.5 | AM41: 0
A42: 2009-05-15 | B42: 0 | C42: 20 | D42: 14 | F42: -1 | G42: 20 | H42: 15 | J42: 0 | K42: 16 | L42: 19 | N42: 0 | O42: 21 | P42: 14 | R42: -1 | S42: 14 | T42: 21 | V42: 0 | W42: 21 | X42: 14 | AA42: 6 | AB42: 5 | AC42: -3 | AD42: 7 | AE42: -7 | AF42: 7 | AH42: 0.5 | AI42: 1 | AJ42: 5 | AK42: 0 | AL42: 7 | AM42: 0
A43: 2009-05-16 | B43: 1 | C43: 21 | D43: 14 | F43: -1 | G43: =G42+IF(F43>0,F43,0) -> 20 | H43: =H42-IF(F43<0,F43,0) -> 16 | J43: -1 | K43: 16 | L43: 20 | N43: 1 | O43: 22 | P43: 14 | R43: 1 | S43: 15 | T43: 21 | V43: -1 | W43: 21 | X43: 15 | AA43: 7 | AB43: 4 | AC43: -4 | AD43: 8 | AE43: -6 | AF43: 6 | AH43: 0.5 | AI43: 2 | AJ43: 6 | AK43: 0 | AL43: 7 | AM43: 1 | AP43: =AP182 -> STL | AQ43: 0 | AR43: 0.5617283951
A44: 2009-05-17 | B44: -1 | C44: 21 | D44: 15 | F44: -1 | G44: 20 | H44: 17 | J44: 1 | K44: 17 | L44: 20 | N44: 1 | O44: 23 | P44: 14 | R44: 1 | S44: 16 | T44: 21 | V44: -1 | W44: 21 | X44: 16 | AA44: 6 | AB44: 3 | AC44: -3 | AD44: 9 | AE44: -5 | AF44: 5 | AH44: 1.5 | AI44: 3 | AJ44: 6 | AK44: 0 | AL44: 7 | AM44: 2 | AP44: CHC | AQ44: 7.5 | AR44: 0.5155279503
A45: 2009-05-18 | B45: 0 | C45: =C44+IF(B45>0,B45,0) -> 21 | D45: =D44-IF(B45<0,B45,0) -> 15 | F45: 0 | G45: =G44+IF(F45>0,F45,0) -> 20 | H45: =H44-IF(F45<0,F45,0) -> 17 | J45: 0 | K45: =K44+IF(J45>0,J45,0) -> 17 | L45: =L44-IF(J45<0,J45,0) -> 20 | N45: 1 | O45: =O44+IF(N45>0,N45,0) -> 24 | P45: =P44-IF(N45<0,N45,0) -> 14 | R45: 1 | S45: =S44+IF(R45>0,R45,0) -> 17 | T45: =T44-IF(R45<0,R45,0) -> 21 | V45: -1 | W45: =W44+IF(V45>0,V45,0) -> 21 | X45: =X44-IF(V45<0,V45,0) -> 17 | AA45: 6 | AB45: 3 | AC45: -3 | AD45: 10 | AE45: -4 | AF45: 4 | AH45: 2 | AI45: 3.5 | AJ45: 6.5 | AK45: 0 | AL45: 7 | AM45: 3 | AP45: MIL | AQ45: 11 | AR45: 0.4938271605
A46: 2009-05-19 | B46: -1 | C46: 21 | D46: 16 | F46: -1 | G46: 20 | H46: 18 | J46: -1 | K46: 17 | L46: 21 | N46: 1 | O46: 25 | P46: 14 | R46: 1 | S46: =S45+IF(R46>0,R46,0) -> 18 | T46: =T45-IF(R46<0,R46,0) -> 21 | V46: 1 | W46: 22 | X46: 17 | AA46: 5 | AB46: 2 | AC46: -4 | AD46: 11 | AE46: -3 | AF46: 5 | AH46: 3 | AI46: 4.5 | AJ46: 7.5 | AK46: 0 | AL46: 7 | AM46: 3 | AP46: CIN | AQ46: 13 | AR46: 0.4814814815
A47: 2009-05-20 | B47: -1 | C47: 21 | D47: 17 | F47: 1 | G47: 21 | H47: 18 | J47: 1 | K47: 18 | L47: 21 | N47: -1 | O47: 25 | P47: 15 | R47: 1 | S47: 19 | T47: 21 | V47: 1 | W47: 23 | X47: 17 | AA47: 4 | AB47: 3 | AC47: -3 | AD47: 10 | AE47: -2 | AF47: 6 | AH47: 3 | AI47: 3.5 | AJ47: 6.5 | AK47: 0 | AL47: 6 | AM47: 2 | AP47: HOU | AQ47: 17 | AR47: 0.4567901235
A48: 2009-05-21 | B48: -1 | C48: 21 | D48: 18 | F48: -1 | G48: 21 | H48: 19 | J48: -1 | K48: 18 | L48: 22 | N48: 1 | O48: 26 | P48: 15 | R48: -1 | S48: 19 | T48: 22 | V48: 1 | W48: 24 | X48: 17 | AA48: 3 | AB48: 2 | AC48: -4 | AD48: 11 | AE48: -3 | AF48: 7 | AH48: 4 | AI48: 4.5 | AJ48: 7.5 | AK48: 0 | AL48: 7 | AM48: 2 | AP48: PIT | AQ48: 28.5 | AR48: 0.3850931677
A49: 2009-05-22 | B49: -1 | C49: 21 | D49: 19 | F49: 1 | G49: 22 | H49: 19 | J49: -1 | K49: 18 | L49: 23 | N49: -1 | O49: 26 | P49: 16 | R49: -1 | S49: 19 | T49: 23 | V49: 1 | W49: 25 | X49: 17 | AA49: 2 | AB49: 3 | AC49: -5 | AD49: 10 | AE49: -4 | AF49: 8 | AH49: 4 | AI49: 3.5 | AJ49: 7.5 | AK49: 0 | AL49: 7 | AM49: 1
A50: 2009-05-23 | B50: -1 | C50: 21 | D50: 20 | F50: -1 | G50: 22 | H50: 20 | J50: -1 | K50: 18 | L50: 24 | N50: -1 | O50: 26 | P50: 17 | R50: -1 | S50: 19 | T50: 24 | V50: 1 | W50: 26 | X50: 17 | AA50: 1 | AB50: 2 | AC50: -6 | AD50: 9 | AE50: -5 | AF50: 9 | AH50: 4 | AI50: 3.5 | AJ50: 7.5 | AK50: 0 | AL50: 7 | AM50: 0
A51: 2009-05-24 | B51: -1 | C51: 21 | D51: 21 | F51: 1 | G51: 23 | H51: 20 | J51: -1 | K51: 18 | L51: 25 | N51: -1 | O51: 26 | P51: 18 | R51: 1 | S51: 20 | T51: 24 | V51: -1 | W51: 26 | X51: 18 | AA51: 0 | AB51: 3 | AC51: -7 | AD51: 8 | AE51: -4 | AF51: 8 | AH51: 4 | AI51: 2.5 | AJ51: 7.5 | AK51: 0 | AL51: 6 | AM51: 0
A52: 2009-05-25 | B52: -1 | C52: 21 | D52: 22 | F52: 1 | G52: 24 | H52: 20 | J52: -1 | K52: 18 | L52: 26 | N52: 1 | O52: 27 | P52: 18 | R52: 1 | S52: 21 | T52: 24 | V52: -1 | W52: 26 | X52: 19 | AA52: -1 | AB52: 4 | AC52: -8 | AD52: 9 | AE52: -3 | AF52: 7 | AH52: 5 | AI52: 2.5 | AJ52: 8.5 | AK52: 0 | AL52: 6 | AM52: 1
A53: 2009-05-26 | B53: 1 | C53: 22 | D53: 22 | F53: 1 | G53: 25 | H53: 20 | J53: -1 | K53: 18 | L53: 27 | N53: -1 | O53: 27 | P53: 19 | R53: -1 | S53: 21 | T53: 25 | V53: 1 | W53: 27 | X53: 19 | AA53: 0 | AB53: 5 | AC53: -9 | AD53: 8 | AE53: -4 | AF53: 8 | AH53: 4 | AI53: 1.5 | AJ53: 8.5 | AK53: 0 | AL53: 6 | AM53: 0
A54: 2009-05-27 | B54: 1 | C54: 23 | D54: 22 | F54: 1 | G54: 26 | H54: 20 | J54: -1 | K54: 18 | L54: 28 | N54: -1 | O54: 27 | P54: 20 | R54: -1 | S54: 21 | T54: 26 | V54: 1 | W54: 28 | X54: 19 | AA54: 1 | AB54: 6 | AC54: -10 | AD54: 7 | AE54: -5 | AF54: 9 | AH54: 4 | AI54: 1.5 | AJ54: 9.5 | AK54: 1 | AL54: 7 | AM54: 0
A55: 2009-05-28 | B55: -1 | C55: 23 | D55: 23 | F55: 0 | G55: 26 | H55: 20 | J55: 0 | K55: 18 | L55: 28 | N55: 0 | O55: 27 | P55: 20 | R55: 0 | S55: 21 | T55: 26 | V55: 0 | W55: 28 | X55: 19 | AA55: 0 | AB55: 6 | AC55: -10 | AD55: 7 | AE55: -5 | AF55: 9 | AH55: 4.5 | AI55: 1.5 | AJ55: 9.5 | AK55: 1 | AL55: 7 | AM55: 0
A56: 2009-05-29 | B56: 1 | C56: 24 | D56: 23 | F56: -1 | G56: 26 | H56: 21 | J56: 1 | K56: 19 | L56: 28 | N56: 1 | O56: 28 | P56: 20 | R56: -1 | S56: 21 | T56: 27 | V56: -1 | W56: 28 | X56: 20 | AA56: 1 | AB56: 5 | AC56: -9 | AD56: 8 | AE56: -6 | AF56: 8 | AH56: 3.5 | AI56: 1.5 | AJ56: 8.5 | AK56: 0 | AL56: 7 | AM56: 0
A57: 2009-05-30 | B57: 1 | C57: 25 | D57: 23 | F57: -1 | G57: 26 | H57: 22 | J57: -1 | K57: 19 | L57: 29 | N57: 1 | O57: 29 | P57: 20 | R57: 1 | S57: 22 | T57: 27 | V57: 1 | W57: 29 | X57: 20 | AA57: 2 | AB57: 4 | AC57: -10 | AD57: 9 | AE57: -5 | AF57: 9 | AH57: 3.5 | AI57: 2.5 | AJ57: 9.5 | AK57: 0 | AL57: 7 | AM57: 0
A58: 2009-05-31 | B58: -1 | C58: 25 | D58: 24 | F58: -1 | G58: 26 | H58: 23 | J58: 1 | K58: 20 | L58: 29 | N58: 1 | O58: 30 | P58: 20 | R58: -1 | S58: 22 | T58: 28 | V58: -1 | W58: 29 | X58: 21 | AA58: 1 | AB58: 3 | AC58: -9 | AD58: 10 | AE58: -6 | AF58: 8 | AH58: 4.5 | AI58: 3.5 | AJ58: 9.5 | AK58: 0 | AL58: 8 | AM58: 1
A59: 2009-06-01 | B59: 0 | C59: 25 | D59: 24 | F59: 1 | G59: 27 | H59: 23 | J59: 1 | K59: 21 | L59: 29 | N59: -1 | O59: 30 | P59: 21 | R59: 1 | S59: 23 | T59: 28 | V59: -1 | W59: 29 | X59: 22 | AA59: 1 | AB59: 4 | AC59: -8 | AD59: 9 | AE59: -5 | AF59: 7 | AH59: 4 | AI59: 2.5 | AJ59: 8.5 | AK59: 0 | AL59: 7 | AM59: 1
A60: 2009-06-02 | B60: -1 | C60: 25 | D60: 25 | F60: -1 | G60: 27 | H60: 24 | J60: 1 | K60: 22 | L60: 29 | N60: -1 | O60: 30 | P60: 22 | R60: 1 | S60: 24 | T60: 28 | V60: 1 | W60: 30 | X60: 22 | AA60: 0 | AB60: 3 | AC60: -7 | AD60: 8 | AE60: -4 | AF60: 8 | AH60: 4 | AI60: 2.5 | AJ60: 7.5 | AK60: 0 | AL60: 6 | AM60: 0
A61: 2009-06-03 | B61: 1 | C61: 26 | D61: 25 | F61: 1 | G61: 28 | H61: 24 | J61: 1 | K61: 23 | L61: 29 | N61: 1 | O61: 31 | P61: 22 | R61: 0 | S61: 24 | T61: 28 | V61: -1 | W61: 30 | X61: 23 | AA61: 1 | AB61: 4 | AC61: -6 | AD61: 9 | AE61: -4 | AF61: 7 | AH61: 4 | AI61: 2.5 | AJ61: 7.5 | AK61: 0 | AL61: 6.5 | AM61: 1
A62: 2009-06-04 | B62: 0 | C62: 26 | D62: 25 | F62: -1 | G62: 28 | H62: 25 | J62: -1 | K62: 23 | L62: 30 | N62: -1 | O62: 31 | P62: 23 | R62: 1 | S62: 25 | T62: 28 | V62: 1 | W62: 31 | X62: 23 | AA62: 1 | AB62: 3 | AC62: -7 | AD62: 8 | AE62: -3 | AF62: 8 | AH62: 3.5 | AI62: 2.5 | AJ62: 7.5 | AK62: 0 | AL62: 5.5 | AM62: 0
A63: 2009-06-05 | B63: 1 | C63: 27 | D63: 25 | F63: -1 | G63: 28 | H63: 26 | J63: 1 | K63: 24 | L63: 30 | N63: 1 | O63: 32 | P63: 23 | R63: -1 | S63: 25 | T63: 29 | V63: -1 | W63: 31 | X63: 24 | AA63: 2 | AB63: 2 | AC63: -6 | AD63: 9 | AE63: -4 | AF63: 7 | AH63: 3.5 | AI63: 3.5 | AJ63: 7.5 | AK63: 0 | AL63: 6.5 | AM63: 1
A64: 2009-06-06 | B64: -1 | C64: 27 | D64: 26 | F64: 1 | G64: 29 | H64: 26 | J64: -1 | K64: 24 | L64: 31 | N64: 1 | O64: 33 | P64: 23 | R64: 1 | S64: 26 | T64: 29 | V64: -1 | W64: 31 | X64: 25 | AA64: 1 | AB64: 3 | AC64: -7 | AD64: 10 | AE64: -3 | AF64: 6 | AH64: 4.5 | AI64: 3.5 | AJ64: 8.5 | AK64: 0 | AL64: 6.5 | AM64: 2
A65: 2009-06-07 | B65: 1 | C65: 28 | D65: 26 | F65: -1 | G65: 29 | H65: 27 | J65: 1 | K65: 25 | L65: 31 | N65: -1 | O65: 33 | P65: 24 | R65: -1 | S65: 26 | T65: 30 | V65: -1 | W65: 31 | X65: 26 | AA65: 2 | AB65: 2 | AC65: -6 | AD65: 9 | AE65: -4 | AF65: 5 | AH65: 3.5 | AI65: 3.5 | AJ65: 7.5 | AK65: 0 | AL65: 6.5 | AM65: 2
A66: 2009-06-08 | B66: 0 | C66: 28 | D66: 26 | F66: 0 | G66: 29 | H66: 27 | J66: 0 | K66: 25 | L66: 31 | N66: 0 | O66: 33 | P66: 24 | R66: -1 | S66: 26 | T66: 31 | V66: -1 | W66: 31 | X66: 27 | AA66: 2 | AB66: 2 | AC66: -6 | AD66: 9 | AE66: -5 | AF66: 4 | AH66: 3.5 | AI66: 3.5 | AJ66: 7.5 | AK66: 0 | AL66: 7 | AM66: 2.5
A67: 2009-06-09 | B67: 1 | C67: 29 | D67: 26 | F67: 1 | G67: 30 | H67: 27 | J67: -1 | K67: 25 | L67: 32 | N67: -1 | O67: 33 | P67: 25 | R67: -1 | S67: 26 | T67: 32 | V67: -1 | W67: 31 | X67: 28 | AA67: 3 | AB67: 3 | AC67: -7 | AD67: 8 | AE67: -6 | AF67: 3 | AH67: 2.5 | AI67: 2.5 | AJ67: 7.5 | AK67: 0 | AL67: 7 | AM67: 2.5
A68: 2009-06-10 | B68: -1 | C68: 29 | D68: 27 | F68: 1 | G68: 31 | H68: 27 | J68: 1 | K68: 26 | L68: 32 | N68: -1 | O68: 33 | P68: 26 | R68: 1 | S68: 27 | T68: 32 | V68: 1 | W68: 32 | X68: 28 | AA68: 2 | AB68: 4 | AC68: -6 | AD68: 7 | AE68: -5 | AF68: 4 | AH68: 2.5 | AI68: 1.5 | AJ68: 6.5 | AK68: 0 | AL68: 6 | AM68: 1.5
A69: 2009-06-11 | B69: -1 | C69: 29 | D69: 28 | F69: -1 | G69: 31 | H69: 28 | J69: 1 | K69: 27 | L69: 32 | N69: -1 | O69: 33 | P69: 27 | R69: 1 | S69: 28 | T69: 32 | V69: 1 | W69: =W68+IF(V69>0,V69,0) -> 33 | X69: =X68-IF(V69<0,V69,0) -> 28 | AA69: 1 | AB69: 3 | AC69: -5 | AD69: 6 | AE69: -4 | AF69: 5 | AH69: 2.5 | AI69: 1.5 | AJ69: 5.5 | AK69: 0 | AL69: 5 | AM69: 0.5
A70: 2009-06-12 | B70: -1 | C70: =C69+IF(B70>0,B70,0) -> 29 | D70: =D69-IF(B70<0,B70,0) -> 29 | F70: -1 | G70: =G69+IF(F70>0,F70,0) -> 31 | H70: =H69-IF(F70<0,F70,0) -> 29 | J70: -1 | K70: 27 | L70: 33 | N70: 1 | O70: 34 | P70: 27 | R70: -1 | S70: 28 | T70: 33 | V70: -1 | W70: 33 | X70: 29 | AA70: =C70-D70 -> 0 | AB70: =G70-H70 -> 2 | AC70: =K70-L70 -> -6 | AD70: =O70-P70 -> 7 | AE70: =S70-T70 -> -5 | AF70: =W70-X70 -> 4 | AH70: =(MAX($AA70:$AF70)-AA70)/2 -> 3.5 | AI70: =(MAX($AA70:$AF70)-AB70)/2 -> 2.5 | AJ70: =(MAX($AA70:$AF70)-AC70)/2 -> 6.5 | AK70: =(MAX($AA70:$AF70)-AD70)/2 -> 0 | AL70: =(MAX($AA70:$AF70)-AE70)/2 -> 6 | AM70: =(MAX($AA70:$AF70)-AF70)/2 -> 1.5
A71: 2009-06-13 | B71: -1 | C71: =C70+IF(B71>0,B71,0) -> 29 | D71: =D70-IF(B71<0,B71,0) -> 30 | F71: -1 | G71: =G70+IF(F71>0,F71,0) -> 31 | H71: =H70-IF(F71<0,F71,0) -> 30 | J71: 1 | K71: =K70+IF(J71>0,J71,0) -> 28 | L71: =L70-IF(J71<0,J71,0) -> 33 | N71: -1 | O71: =O70+IF(N71>0,N71,0) -> 34 | P71: =P70-IF(N71<0,N71,0) -> 28 | R71: 1 | S71: 29 | T71: 33 | V71: 1 | W71: =W70+IF(V71>0,V71,0) -> 34 | X71: =X70-IF(V71<0,V71,0) -> 29 | AA71: -1 | AB71: 1 | AC71: -5 | AD71: 6 | AE71: -4 | AF71: 5 | AH71: 3.5 | AI71: 2.5 | AJ71: 5.5 | AK71: 0 | AL71: 5 | AM71: 0.5
A72: 2009-06-14 | B72: 1 | C72: =C71+IF(B72>0,B72,0) -> 30 | D72: =D71-IF(B72<0,B72,0) -> 30 | F72: -1 | G72: =G71+IF(F72>0,F72,0) -> 31 | H72: =H71-IF(F72<0,F72,0) -> 31 | J72: 1 | K72: 29 | L72: 33 | N72: -1 | O72: 34 | P72: 29 | R72: 1 | S72: 30 | T72: 33 | V72: -1 | W72: 34 | X72: 30 | AA72: 0 | AB72: 0 | AC72: -4 | AD72: 5 | AE72: -3 | AF72: 4 | AH72: 2.5 | AI72: 2.5 | AJ72: 4.5 | AK72: 0 | AL72: 4 | AM72: 0.5
A73: 2009-06-15 | B73: 0 | C73: =C72+IF(B73>0,B73,0) -> 30 | D73: =D72-IF(B73<0,B73,0) -> 30 | F73: 0 | G73: =G72+IF(F73>0,F73,0) -> 31 | H73: =H72-IF(F73<0,F73,0) -> 31 | J73: 0 | K73: 29 | L73: 33 | N73: 1 | O73: 35 | P73: 29 | R73: 0 | S73: 30 | T73: 33 | V73: 0 | W73: 34 | X73: 30 | AA73: 0 | AB73: 0 | AC73: -4 | AD73: 6 | AE73: -3 | AF73: 4 | AH73: 3 | AI73: 3 | AJ73: 5 | AK73: 0 | AL73: 4.5 | AM73: 1
A74: 2009-06-16 | B74: 0 | C74: 30 | D74: 30 | F74: 1 | G74: 32 | H74: 31 | J74: -1 | K74: 29 | L74: 34 | N74: 1 | O74: 36 | P74: 29 | R74: -1 | S74: 30 | T74: 34 | V74: 1 | W74: 35 | X74: 30 | AA74: 0 | AB74: 1 | AC74: -5 | AD74: 7 | AE74: -4 | AF74: 5 | AH74: 3.5 | AI74: 3 | AJ74: 6 | AK74: 0 | AL74: 5.5 | AM74: 1
A75: 2009-06-17 | B75: -1 | C75: 30 | D75: 31 | F75: 1 | G75: 33 | H75: 31 | J75: -1 | K75: 29 | L75: 35 | N75: 1 | O75: 37 | P75: 29 | R75: 1 | S75: 31 | T75: 34 | V75: 1 | W75: 36 | X75: 30 | AA75: -1 | AB75: 2 | AC75: -6 | AD75: 8 | AE75: -3 | AF75: 6 | AH75: 4.5 | AI75: 3 | AJ75: 7 | AK75: 0 | AL75: 5.5 | AM75: 1
A76: 2009-06-18 | B76: 1 | C76: 31 | D76: 31 | F76: -1 | G76: 33 | H76: 32 | J76: 1 | K76: 30 | L76: 35 | N76: 0 | O76: 37 | P76: 29 | R76: -1 | S76: 31 | T76: 35 | V76: -1 | W76: 36 | X76: 31 | AA76: 0 | AB76: 1 | AC76: -5 | AD76: 8 | AE76: -4 | AF76: 5 | AH76: 4 | AI76: 3.5 | AJ76: 6.5 | AK76: 0 | AL76: 6 | AM76: 1.5
A77: 2009-06-19 | B77: 1 | C77: 32 | D77: 31 | F77: 1 | G77: 34 | H77: 32 | J77: -1 | K77: 30 | L77: 36 | N77: -1 | O77: 37 | P77: 30 | R77: -1 | S77: 31 | T77: 36 | V77: 1 | W77: 37 | X77: 31 | AA77: 1 | AB77: 2 | AC77: -6 | AD77: 7 | AE77: -5 | AF77: 6 | AH77: 3 | AI77: 2.5 | AJ77: 6.5 | AK77: 0 | AL77: 6 | AM77: 0.5
A78: 2009-06-20 | B78: 1 | C78: 33 | D78: 31 | F78: -1 | G78: 34 | H78: 33 | J78: 1 | K78: 31 | L78: 36 | N78: -1 | O78: 37 | P78: 31 | R78: -1 | S78: =S77+IF(R78>0,R78,0) -> 31 | T78: =T77-IF(R78<0,R78,0) -> 37 | V78: 1 | W78: 38 | X78: 31 | AA78: 2 | AB78: 1 | AC78: -5 | AD78: 6 | AE78: -6 | AF78: 7 | AH78: 2.5 | AI78: 3 | AJ78: 6 | AK78: 0.5 | AL78: 6.5 | AM78: 0
A79: 2009-06-21 | B79: 1 | C79: 34 | D79: 31 | F79: -1 | G79: 34 | H79: 34 | J79: 1 | K79: 32 | L79: 36 | N79: -1 | O79: 37 | P79: 32 | R79: -1 | S79: 31 | T79: 38 | V79: 1 | W79: 39 | X79: 31 | AA79: 3 | AB79: 0 | AC79: -4 | AD79: 5 | AE79: -7 | AF79: 8 | AH79: 2.5 | AI79: 4 | AJ79: 6 | AK79: 1.5 | AL79: 7.5 | AM79: 0
A80: 2009-06-22 | B80: -1 | C80: 34 | D80: 32 | F80: 0 | G80: 34 | H80: 34 | J80: 0 | K80: 32 | L80: 36 | N80: 0 | O80: 37 | P80: 32 | R80: 0 | S80: 31 | T80: 38 | V80: -1 | W80: 39 | X80: 32 | AA80: 2 | AB80: 0 | AC80: -4 | AD80: 5 | AE80: -7 | AF80: 7 | AH80: 2.5 | AI80: 3.5 | AJ80: 5.5 | AK80: 1 | AL80: 7 | AM80: 0
A81: 2009-06-23 | B81: -1 | C81: 34 | D81: 33 | F81: -1 | G81: 34 | H81: 35 | J81: -1 | K81: 32 | L81: 37 | N81: -1 | O81: 37 | P81: 33 | R81: -1 | S81: 31 | T81: 39 | V81: 1 | W81: 40 | X81: 32 | AA81: 1 | AB81: -1 | AC81: -5 | AD81: 4 | AE81: -8 | AF81: 8 | AH81: 3.5 | AI81: 4.5 | AJ81: 6.5 | AK81: 2 | AL81: 8 | AM81: 0
A82: 2009-06-24 | B82: -1 | C82: 34 | D82: 34 | F82: -1 | G82: 34 | H82: 36 | J82: -1 | K82: 32 | L82: 38 | N82: 1 | O82: 38 | P82: 33 | R82: 1 | S82: 32 | T82: 39 | V82: -1 | W82: 40 | X82: 33 | AA82: 0 | AB82: -2 | AC82: -6 | AD82: 5 | AE82: -7 | AF82: 7 | AH82: 3.5 | AI82: 4.5 | AJ82: 6.5 | AK82: 1 | AL82: 7 | AM82: 0
A83: 2009-06-25 | B83: -1 | C83: 34 | D83: 35 | F83: 1 | G83: 35 | H83: 36 | J83: 1 | K83: 33 | L83: 38 | N83: -1 | O83: 38 | P83: 34 | R83: 1 | S83: 33 | T83: 39 | V83: -1 | W83: 40 | X83: 34 | AA83: -1 | AB83: -1 | AC83: -5 | AD83: 4 | AE83: -6 | AF83: 6 | AH83: 3.5 | AI83: 3.5 | AJ83: 5.5 | AK83: 1 | AL83: 6 | AM83: 0
A84: 2009-06-26 | B84: 1 | C84: 35 | D84: 35 | F84: -1 | G84: 35 | H84: 37 | J84: 1 | K84: 34 | L84: 38 | N84: 1 | O84: 39 | P84: 34 | R84: 1 | S84: 34 | T84: 39 | V84: -1 | W84: 40 | X84: 35 | AA84: 0 | AB84: -2 | AC84: -4 | AD84: 5 | AE84: -5 | AF84: 5 | AH84: 2.5 | AI84: 3.5 | AJ84: 4.5 | AK84: 0 | AL84: 5 | AM84: 0
A85: 2009-06-27 | B85: -1 | C85: 35 | D85: 36 | F85: 1 | G85: 36 | H85: 37 | J85: 1 | K85: 35 | L85: 38 | N85: 1 | O85: 40 | P85: 34 | R85: 1 | S85: 35 | T85: 39 | V85: 1 | W85: 41 | X85: 35 | AA85: -1 | AB85: -1 | AC85: -3 | AD85: 6 | AE85: -4 | AF85: 6 | AH85: 3.5 | AI85: 3.5 | AJ85: 4.5 | AK85: 0 | AL85: 5 | AM85: 0
A86: 2009-06-28 | B86: -1 | C86: 35 | D86: 37 | F86: 1 | G86: 37 | H86: 37 | J86: -1 | K86: 35 | L86: 39 | N86: -1 | O86: 40 | P86: 35 | R86: -1 | S86: 35 | T86: 40 | V86: -1 | W86: 41 | X86: 36 | AA86: -2 | AB86: 0 | AC86: -4 | AD86: 5 | AE86: -5 | AF86: 5 | AH86: 3.5 | AI86: 2.5 | AJ86: 4.5 | AK86: 0 | AL86: 5 | AM86: 0
A87: 2009-06-29 | B87: 1 | C87: 36 | D87: 37 | F87: 0 | G87: 37 | H87: 37 | J87: 1 | K87: 36 | L87: 39 | N87: 1 | O87: 41 | P87: 35 | R87: -1 | S87: 35 | T87: 41 | V87: -1 | W87: 41 | X87: 37 | AA87: -1 | AB87: 0 | AC87: -3 | AD87: 6 | AE87: -6 | AF87: 4 | AH87: 3.5 | AI87: 3 | AJ87: 4.5 | AK87: 0 | AL87: 6 | AM87: 1
A88: 2009-06-30 | B88: -1 | C88: 36 | D88: 38 | F88: -1 | G88: 37 | H88: 38 | J88: -1 | K88: 36 | L88: 40 | N88: 1 | O88: 42 | P88: 35 | R88: 1 | S88: =S87+IF(R88>0,R88,0) -> 36 | T88: =T87-IF(R88<0,R88,0) -> 41 | V88: -1 | W88: =W87+IF(V88>0,V88,0) -> 41 | X88: =X87-IF(V88<0,V88,0) -> 38 | AA88: -2 | AB88: -1 | AC88: -4 | AD88: 7 | AE88: -5 | AF88: 3 | AH88: 4.5 | AI88: 4 | AJ88: 5.5 | AK88: 0 | AL88: 6 | AM88: 2
A89: 2009-07-01 | B89: 1 | C89: 37 | D89: 38 | F89: 1 | G89: 38 | H89: 38 | J89: 1 | K89: 37 | L89: 40 | N89: -1 | O89: 42 | P89: 36 | R89: -1 | S89: 36 | T89: 42 | V89: 1 | W89: 42 | X89: 38 | AA89: -1 | AB89: 0 | AC89: -3 | AD89: 6 | AE89: -6 | AF89: 4 | AH89: 3.5 | AI89: 3 | AJ89: 4.5 | AK89: 0 | AL89: 6 | AM89: 1
A90: 2009-07-02 | B90: 1 | C90: 38 | D90: 38 | F90: 1 | G90: 39 | H90: 38 | J90: 1 | K90: 38 | L90: 40 | N90: -1 | O90: 42 | P90: 37 | R90: -1 | S90: 36 | T90: 43 | V90: 1 | W90: 43 | X90: 38 | AA90: 0 | AB90: 1 | AC90: -2 | AD90: 5 | AE90: -7 | AF90: 5 | AH90: 2.5 | AI90: 2 | AJ90: 3.5 | AK90: 0 | AL90: 6 | AM90: 0
A91: 2009-07-03 | B91: 1 | C91: 39 | D91: 38 | F91: -1 | G91: 39 | H91: 39 | J91: -1 | K91: 38 | L91: 41 | N91: -1 | O91: 42 | P91: 38 | R91: 1 | S91: 37 | T91: 43 | V91: 1 | W91: 44 | X91: 38 | AA91: 1 | AB91: 0 | AC91: -3 | AD91: 4 | AE91: -6 | AF91: 6 | AH91: 2.5 | AI91: 3 | AJ91: 4.5 | AK91: 1 | AL91: 6 | AM91: 0
A92: 2009-07-04 | B92: -1 | C92: 39 | D92: 39 | F92: 1 | G92: 40 | H92: 39 | J92: -1 | K92: 38 | L92: 42 | N92: 1 | O92: 43 | P92: 38 | R92: -1 | S92: 37 | T92: 44 | V92: -1 | W92: 44 | X92: 39 | AA92: 0 | AB92: 1 | AC92: -4 | AD92: 5 | AE92: -7 | AF92: 5 | AH92: 2.5 | AI92: 2 | AJ92: 4.5 | AK92: 0 | AL92: 6 | AM92: 0
A93: 2009-07-05 | B93: 1 | C93: 40 | D93: 39 | F93: -1 | G93: 40 | H93: 40 | J93: 1 | K93: 39 | L93: 42 | N93: -1 | O93: 43 | P93: 39 | R93: -1 | S93: 37 | T93: 45 | V93: 1 | W93: 45 | X93: 39 | AA93: 1 | AB93: 0 | AC93: -3 | AD93: 4 | AE93: -8 | AF93: 6 | AH93: 2.5 | AI93: 3 | AJ93: 4.5 | AK93: 1 | AL93: 7 | AM93: 0
A94: 2009-07-06 | B94: 1 | C94: 41 | D94: 39 | F94: -1 | G94: 40 | H94: 41 | J94: 1 | K94: 40 | L94: 42 | N94: 0 | O94: 43 | P94: 39 | R94: -1 | S94: 37 | T94: 46 | V94: 0 | W94: 45 | X94: 39 | AA94: 2 | AB94: -1 | AC94: -2 | AD94: 4 | AE94: -9 | AF94: 6 | AH94: 2 | AI94: 3.5 | AJ94: 4 | AK94: 1 | AL94: 7.5 | AM94: 0
A95: 2009-07-07 | B95: -1 | C95: 41 | D95: 40 | F95: 1 | G95: 41 | H95: 41 | J95: -1 | K95: 40 | L95: 43 | N95: -1 | O95: 43 | P95: 40 | R95: 1 | S95: 38 | T95: 46 | V95: 1 | W95: 46 | X95: 39 | AA95: 1 | AB95: 0 | AC95: -3 | AD95: 3 | AE95: -8 | AF95: 7 | AH95: 3 | AI95: 3.5 | AJ95: 5 | AK95: 2 | AL95: 7.5 | AM95: 0
A96: 2009-07-08 | B96: -1 | C96: 41 | D96: 41 | F96: -1 | G96: 41 | H96: 42 | J96: 1 | K96: 41 | L96: 43 | N96: 1 | O96: 44 | P96: 40 | R96: -1 | S96: 38 | T96: 47 | V96: -1 | W96: 46 | X96: 40 | AA96: 0 | AB96: -1 | AC96: -2 | AD96: 4 | AE96: -9 | AF96: 6 | AH96: 3 | AI96: 3.5 | AJ96: 4 | AK96: 1 | AL96: 7.5 | AM96: 0
A97: 2009-07-09 | B97: 0 | C97: 41 | D97: 41 | F97: -1 | G97: 41 | H97: 43 | J97: 1 | K97: 42 | L97: 43 | N97: -1 | O97: 44 | P97: 41 | R97: 0 | S97: 38 | T97: 47 | V97: 1 | W97: 47 | X97: 40 | AA97: 0 | AB97: -2 | AC97: -1 | AD97: 3 | AE97: -9 | AF97: 7 | AH97: 3.5 | AI97: 4.5 | AJ97: 4 | AK97: 2 | AL97: 8 | AM97: 0
A98: 2009-07-10 | B98: -1 | C98: 41 | D98: 42 | F98: 1 | G98: 42 | H98: 43 | J98: 1 | K98: 43 | L98: 43 | N98: -1 | O98: 44 | P98: 42 | R98: -1 | S98: 38 | T98: 48 | V98: 1 | W98: 48 | X98: 40 | AA98: -1 | AB98: -1 | AC98: 0 | AD98: 2 | AE98: -10 | AF98: 8 | AH98: 4.5 | AI98: 4.5 | AJ98: 4 | AK98: 3 | AL98: 9 | AM98: 0
A99: 2009-07-11 | B99: 1 | C99: 42 | D99: 42 | F99: -1 | G99: 42 | H99: 44 | J99: -1 | K99: 43 | L99: 44 | N99: 1 | O99: 45 | P99: 42 | R99: -1 | S99: 38 | T99: 49 | V99: -1 | W99: 48 | X99: 41 | AA99: 0 | AB99: -2 | AC99: -1 | AD99: 3 | AE99: -11 | AF99: 7 | AH99: 3.5 | AI99: 4.5 | AJ99: 4 | AK99: 2 | AL99: 9 | AM99: 0
A100: 2009-07-12 | B100: 0 | C100: 43 | D100: 43 | F100: -1 | G100: 42 | H100: 45 | J100: 1 | K100: 44 | L100: 44 | N100: -1 | O100: 45 | P100: 43 | R100: -1 | S100: 38 | T100: 50 | V100: 0 | W100: 49 | X100: 42 | AA100: 0 | AB100: -3 | AC100: 0 | AD100: 2 | AE100: -12 | AF100: 7 | AH100: 3.5 | AI100: 5 | AJ100: 3.5 | AK100: 2.5 | AL100: 9.5 | AM100: 0
A101: 2009-07-13 | B101: 0 | C101: 43 | D101: 43 | F101: 0 | G101: 42 | H101: 45 | J101: 0 | K101: 44 | L101: 44 | N101: 0 | O101: 45 | P101: 43 | R101: 0 | S101: 38 | T101: 50 | V101: 0 | W101: 49 | X101: 42 | AA101: 0 | AB101: -3 | AC101: 0 | AD101: 2 | AE101: -12 | AF101: 7 | AH101: 3.5 | AI101: 5 | AJ101: 3.5 | AK101: 2.5 | AL101: 9.5 | AM101: 0
A102: 2009-07-14 | B102: 0 | C102: 43 | D102: 43 | F102: 0 | G102: 42 | H102: 45 | J102: 0 | K102: 44 | L102: 44 | N102: 0 | O102: 45 | P102: 43 | R102: 0 | S102: 38 | T102: 50 | V102: 0 | W102: 49 | X102: 42 | AA102: =C102-D102 -> 0 | AB102: =G102-H102 -> -3 | AC102: =K102-L102 -> 0 | AD102: =O102-P102 -> 2 | AE102: =S102-T102 -> -12 | AF102: =W102-X102 -> 7 | AH102: =(MAX($AA102:$AF102)-AA102)/2 -> 3.5 | AI102: =(MAX($AA102:$AF102)-AB102)/2 -> 5 | AJ102: =(MAX($AA102:$AF102)-AC102)/2 -> 3.5 | AK102: =(MAX($AA102:$AF102)-AD102)/2 -> 2.5 | AL102: =(MAX($AA102:$AF102)-AE102)/2 -> 9.5 | AM102: =(MAX($AA102:$AF102)-AF102)/2 -> 0
A103: 2009-07-15 | B103: 0 | C103: =C102+IF(B103>0,B103,0) -> 43 | D103: =D102-IF(B103<0,B103,0) -> 43 | F103: 0 | G103: =G102+IF(F103>0,F103,0) -> 42 | H103: =H102-IF(F103<0,F103,0) -> 45 | J103: 0 | K103: =K102+IF(J103>0,J103,0) -> 44 | L103: =L102-IF(J103<0,J103,0) -> 44 | N103: 0 | O103: =O102+IF(N103>0,N103,0) -> 45 | P103: =P102-IF(N103<0,N103,0) -> 43 | R103: 0 | S103: 38 | T103: 50 | V103: 0 | W103: =W102+IF(V103>0,V103,0) -> 49 | X103: =X102-IF(V103<0,V103,0) -> 42 | AA103: 0 | AB103: -3 | AC103: 0 | AD103: 2 | AE103: -12 | AF103: 7 | AH103: 3.5 | AI103: 5 | AJ103: 3.5 | AK103: 2.5 | AL103: 9.5 | AM103: 0
A104: 2009-07-16 | B104: 1 | C104: 44 | D104: 43 | F104: -1 | G104: 42 | H104: 46 | J104: 1 | K104: 45 | L104: 44 | N104: 1 | O104: 46 | P104: 43 | R104: 0 | S104: 38 | T104: 50 | V104: 0 | W104: 49 | X104: 42 | AA104: 1 | AB104: -4 | AC104: 1 | AD104: 3 | AE104: -12 | AF104: 7 | AH104: 3 | AI104: 5.5 | AJ104: 3 | AK104: 2 | AL104: 9.5 | AM104: 0
A105: 2009-07-17 | B105: 1 | C105: 45 | D105: 43 | F105: 1 | G105: 43 | H105: 46 | J105: 1 | K105: 46 | L105: 44 | N105: -1 | O105: 46 | P105: 44 | R105: 1 | S105: 39 | T105: 50 | V105: 1 | W105: 50 | X105: 42 | AA105: 2 | AB105: -3 | AC105: 2 | AD105: 2 | AE105: -11 | AF105: 8 | AH105: 3 | AI105: 5.5 | AJ105: 3 | AK105: 3 | AL105: 9.5 | AM105: 0
A106: 2009-07-18 | B106: 1 | C106: 46 | D106: 43 | F106: -1 | G106: 43 | H106: 47 | J106: -1 | K106: 46 | L106: 45 | N106: 1 | O106: 47 | P106: 44 | R106: 1 | S106: 40 | T106: 50 | V106: -1 | W106: 50 | X106: 43 | AA106: 3 | AB106: -4 | AC106: 1 | AD106: 3 | AE106: -10 | AF106: 7 | AH106: 2 | AI106: 5.5 | AJ106: 3 | AK106: 2 | AL106: 8.5 | AM106: 0
A107: 2009-07-19 | B107: 1 | C107: 47 | D107: 43 | F107: 1 | G107: 44 | H107: 47 | J107: -1 | K107: 46 | L107: 46 | N107: -1 | O107: 47 | P107: 45 | R107: -1 | S107: 40 | T107: 51 | V107: 1 | W107: 51 | X107: 43 | AA107: 4 | AB107: -3 | AC107: 0 | AD107: 2 | AE107: -11 | AF107: 8 | AH107: 2 | AI107: 5.5 | AJ107: 4 | AK107: 3 | AL107: 9.5 | AM107: 0
A108: 2009-07-20 | B108: -1 | C108: 47 | D108: 44 | F108: -1 | G108: 44 | H108: 48 | J108: 1 | K108: 47 | L108: 46 | N108: -1 | O108: 47 | P108: 46 | R108: 1 | S108: 41 | T108: 51 | V108: -1 | W108: 51 | X108: 44 | AA108: 3 | AB108: -4 | AC108: 1 | AD108: 1 | AE108: -10 | AF108: 7 | AH108: 2 | AI108: 5.5 | AJ108: 3 | AK108: 3 | AL108: 8.5 | AM108: 0
A109: 2009-07-21 | B109: -1 | C109: 47 | D109: 45 | F109: -1 | G109: 44 | H109: 49 | J109: 1 | K109: 48 | L109: 46 | N109: 1 | O109: 48 | P109: 46 | R109: -1 | S109: 41 | T109: 52 | V109: -1 | W109: 51 | X109: 45 | AA109: 2 | AB109: -5 | AC109: 2 | AD109: 2 | AE109: -11 | AF109: 6 | AH109: 2 | AI109: 5.5 | AJ109: 2 | AK109: 2 | AL109: 8.5 | AM109: 0
A110: 2009-07-22 | B110: 1 | C110: 48 | D110: 45 | F110: -1 | G110: 44 | H110: 50 | J110: 1 | K110: 49 | L110: 46 | N110: -1 | O110: 48 | P110: 47 | R110: 1 | S110: =S109+IF(R110>0,R110,0) -> 42 | T110: =T109-IF(R110<0,R110,0) -> 52 | V110: -1 | W110: 51 | X110: 46 | AA110: 3 | AB110: -6 | AC110: 3 | AD110: 1 | AE110: -10 | AF110: 5 | AH110: 1 | AI110: 5.5 | AJ110: 1 | AK110: 2 | AL110: 7.5 | AM110: 0
A111: 2009-07-23 | B111: 0 | C111: 48 | D111: 45 | F111: 0 | G111: 44 | H111: 50 | J111: 0 | K111: 49 | L111: 46 | N111: 0 | O111: 48 | P111: 47 | R111: -1 | S111: 42 | T111: 53 | V111: 1 | W111: 52 | X111: 46 | AA111: 3 | AB111: -6 | AC111: 3 | AD111: 1 | AE111: -11 | AF111: 6 | AH111: 1.5 | AI111: 6 | AJ111: 1.5 | AK111: 2.5 | AL111: 8.5 | AM111: 0
A112: 2009-07-24 | B112: 1 | C112: 49 | D112: 45 | F112: -1 | G112: 44 | H112: 51 | J112: 1 | K112: 50 | L112: 46 | N112: -1 | O112: 48 | P112: 48 | R112: 1 | S112: 43 | T112: 53 | V112: 1 | W112: 53 | X112: 46 | AA112: 4 | AB112: -7 | AC112: 4 | AD112: 0 | AE112: -10 | AF112: 7 | AH112: 1.5 | AI112: 7 | AJ112: 1.5 | AK112: 3.5 | AL112: 8.5 | AM112: 0
A113: 2009-07-25 | B113: 1 | C113: 50 | D113: 45 | F113: -1 | G113: 44 | H113: 52 | J113: -1 | K113: 50 | L113: 47 | N113: 1 | O113: 49 | P113: 48 | R113: -1 | S113: 43 | T113: 54 | V113: -1 | W113: 53 | X113: 47 | AA113: 5 | AB113: -8 | AC113: 3 | AD113: 1 | AE113: -11 | AF113: 6 | AH113: 0.5 | AI113: 7 | AJ113: 1.5 | AK113: 2.5 | AL113: 8.5 | AM113: 0
A114: 2009-07-26 | B114: 1 | C114: 51 | D114: 45 | F114: -1 | G114: 44 | H114: 53 | J114: -1 | K114: 50 | L114: 48 | N114: -1 | O114: 49 | P114: 49 | R114: -1 | S114: 43 | T114: 55 | V114: -1 | W114: 53 | X114: 48 | AA114: 6 | AB114: -9 | AC114: 2 | AD114: 0 | AE114: -12 | AF114: 5 | AH114: 0 | AI114: 7.5 | AJ114: 2 | AK114: 3 | AL114: 9 | AM114: 0.5
A115: 2009-07-27 | B115: 1 | C115: 52 | D115: 45 | F115: 1 | G115: 45 | H115: 53 | J115: -1 | K115: 50 | L115: 49 | N115: -1 | O115: 49 | P115: 50 | R115: -1 | S115: 43 | T115: 56 | V115: 1 | W115: 54 | X115: 48 | AA115: 7 | AB115: -8 | AC115: 1 | AD115: -1 | AE115: -13 | AF115: 6 | AH115: 0 | AI115: 7.5 | AJ115: 3 | AK115: 4 | AL115: 10 | AM115: 0.5
A116: 2009-07-28 | B116: -1 | C116: 52 | D116: 46 | F116: -1 | G116: 45 | H116: 54 | J116: 1 | K116: 51 | L116: 49 | N116: -1 | O116: 49 | P116: 51 | R116: -1 | S116: 43 | T116: 57 | V116: 1 | W116: 55 | X116: 48 | AA116: 6 | AB116: -9 | AC116: 2 | AD116: -2 | AE116: -14 | AF116: 7 | AH116: 0.5 | AI116: 8 | AJ116: 2.5 | AK116: 4.5 | AL116: 10.5 | AM116: 0
A117: 2009-07-29 | B117: 1 | C117: 53 | D117: 46 | F117: -1 | G117: 45 | H117: 55 | J117: -1 | K117: 51 | L117: 50 | N117: 1 | O117: 50 | P117: 51 | R117: -1 | S117: 43 | T117: 58 | V117: 1 | W117: 56 | X117: 48 | AA117: 7 | AB117: -10 | AC117: 1 | AD117: -1 | AE117: -15 | AF117: 8 | AH117: 0.5 | AI117: 9 | AJ117: 3.5 | AK117: 4.5 | AL117: 11.5 | AM117: 0
A118: 2009-07-30 | B118: 1 | C118: 54 | D118: 46 | F118: -1 | G118: 45 | H118: 56 | J118: -1 | K118: 51 | L118: 51 | N118: 1 | O118: 51 | P118: 51 | R118: 0 | S118: 43 | T118: 58 | V118: -1 | W118: 56 | X118: 49 | AA118: 8 | AB118: -11 | AC118: 0 | AD118: 0 | AE118: -15 | AF118: 7 | AH118: 0 | AI118: 9.5 | AJ118: 4 | AK118: 4 | AL118: 11.5 | AM118: 0.5
A119: 2009-07-31 | B119: -1 | C119: 54 | D119: 47 | F119: -1 | G119: 45 | H119: 57 | J119: -1 | K119: 51 | L119: 52 | N119: -1 | O119: 51 | P119: 52 | R119: 1 | S119: 44 | T119: 58 | V119: 1 | W119: 57 | X119: 49 | AA119: 7 | AB119: -12 | AC119: -1 | AD119: -1 | AE119: -14 | AF119: 8 | AH119: 0.5 | AI119: 10 | AJ119: 4.5 | AK119: 4.5 | AL119: 11 | AM119: 0
A120: 2009-08-01 | B120: 1 | C120: 55 | D120: 47 | F120: -1 | G120: 45 | H120: 58 | J120: -1 | K120: 51 | L120: 53 | N120: -1 | O120: 51 | P120: 53 | R120: 1 | S120: 45 | T120: 58 | V120: 1 | W120: 58 | X120: 49 | AA120: 8 | AB120: -13 | AC120: -2 | AD120: -2 | AE120: -13 | AF120: 9 | AH120: 0.5 | AI120: 11 | AJ120: 5.5 | AK120: 5.5 | AL120: 11 | AM120: 0
A121: 2009-08-02 | B121: -1 | C121: 55 | D121: 48 | F121: -1 | G121: 45 | H121: 59 | J121: 1 | K121: 52 | L121: 53 | N121: 1 | O121: 52 | P121: 53 | R121: -1 | S121: 45 | T121: 59 | V121: -1 | W121: 58 | X121: 50 | AA121: 7 | AB121: -14 | AC121: -1 | AD121: -1 | AE121: -14 | AF121: 8 | AH121: 0.5 | AI121: 11 | AJ121: 4.5 | AK121: 4.5 | AL121: 11 | AM121: 0
A122: 2009-08-03 | B122: 1 | C122: 56 | D122: 48 | F122: -1 | G122: 45 | H122: 60 | J122: 1 | K122: 53 | L122: 53 | N122: 1 | O122: 53 | P122: 53 | R122: -1 | S122: 45 | T122: 60 | V122: 0 | W122: 58 | X122: 50 | AA122: 8 | AB122: -15 | AC122: 0 | AD122: 0 | AE122: -15 | AF122: 8 | AH122: 0 | AI122: 11.5 | AJ122: 4 | AK122: 4 | AL122: 11.5 | AM122: 0
A123: 2009-08-04 | B123: 1 | C123: 57 | D123: 48 | F123: -1 | G123: 45 | H123: 61 | J123: -1 | K123: 53 | L123: 54 | N123: -1 | O123: 53 | P123: 54 | R123: -1 | S123: 45 | T123: 61 | V123: 1 | W123: 59 | X123: 50 | AA123: 9 | AB123: -16 | AC123: -1 | AD123: -1 | AE123: -16 | AF123: 9 | AH123: 0 | AI123: 12.5 | AJ123: 5 | AK123: 5 | AL123: 12.5 | AM123: 0
A124: 2009-08-05 | B124: -1 | C124: 57 | D124: 49 | F124: 1 | G124: 46 | H124: 61 | J124: -1 | K124: 53 | L124: 55 | N124: 1 | O124: 54 | P124: 54 | R124: -1 | S124: 45 | T124: 62 | V124: -1 | W124: 59 | X124: 51 | AA124: 8 | AB124: -15 | AC124: -2 | AD124: 0 | AE124: -17 | AF124: 8 | AH124: 0 | AI124: 11.5 | AJ124: 5 | AK124: 4 | AL124: 12.5 | AM124: 0
A125: 2009-08-06 | B125: 0 | C125: 57 | D125: 49 | F125: 0 | G125: 46 | H125: 61 | J125: 0 | K125: 53 | L125: 55 | N125: 0 | O125: 54 | P125: 54 | R125: -1 | S125: 45 | T125: 63 | V125: 0 | W125: 59 | X125: 51 | AA125: 8 | AB125: -15 | AC125: -2 | AD125: 0 | AE125: -18 | AF125: 8 | AH125: 0 | AI125: 11.5 | AJ125: 5 | AK125: 4 | AL125: 13 | AM125: 0
A126: 2009-08-07 | B126: -1 | C126: 57 | D126: 50 | F126: 1 | G126: 47 | H126: 61 | J126: 1 | K126: 54 | L126: 55 | N126: -1 | O126: 54 | P126: 55 | R126: -1 | S126: 45 | T126: 64 | V126: 1 | W126: 60 | X126: 51 | AA126: 7 | AB126: -14 | AC126: -1 | AD126: -1 | AE126: -19 | AF126: 9 | AH126: 1 | AI126: 11.5 | AJ126: 5 | AK126: 5 | AL126: 14 | AM126: 0
A127: 2009-08-08 | B127: 1 | C127: 58 | D127: 50 | F127: -1 | G127: 47 | H127: 62 | J127: -1 | K127: 54 | L127: 56 | N127: 1 | O127: 55 | P127: 55 | R127: -1 | S127: 45 | T127: 65 | V127: 1 | W127: 61 | X127: 51 | AA127: 8 | AB127: -15 | AC127: -2 | AD127: 0 | AE127: -20 | AF127: 10 | AH127: 1 | AI127: 12.5 | AJ127: 6 | AK127: 5 | AL127: 15 | AM127: 0
A128: 2009-08-09 | B128: -1 | C128: 58 | D128: 51 | F128: 1 | G128: 48 | H128: 62 | J128: 1 | K128: 55 | L128: 56 | N128: -1 | O128: 55 | P128: 56 | R128: -1 | S128: 45 | T128: 66 | V128: 1 | W128: 62 | X128: 51 | AA128: 7 | AB128: -14 | AC128: -1 | AD128: -1 | AE128: -21 | AF128: 11 | AH128: 2 | AI128: 12.5 | AJ128: 6 | AK128: 6 | AL128: 16 | AM128: 0
A129: 2009-08-10 | B129: -1 | C129: 58 | D129: 52 | F129: -1 | G129: 48 | H129: 63 | J129: -1 | K129: 55 | L129: 57 | N129: 0 | O129: 55 | P129: 56 | R129: 0 | S129: 45 | T129: 66 | V129: 1 | W129: 63 | X129: 51 | AA129: 6 | AB129: -15 | AC129: -2 | AD129: -1 | AE129: -21 | AF129: 12 | AH129: 3 | AI129: 13.5 | AJ129: 7 | AK129: 6.5 | AL129: 16.5 | AM129: 0
A130: 2009-08-11 | B130: -1 | C130: 58 | D130: 53 | F130: 1 | G130: 49 | H130: 63 | J130: -1 | K130: 55 | L130: 58 | N130: -1 | O130: 55 | P130: 57 | R130: 1 | S130: 46 | T130: 66 | V130: -1 | W130: 63 | X130: 52 | AA130: 5 | AB130: -14 | AC130: -3 | AD130: -2 | AE130: -20 | AF130: 11 | AH130: 3 | AI130: 12.5 | AJ130: 7 | AK130: 6.5 | AL130: 15.5 | AM130: 0
A131: 2009-08-12 | B131: -1 | C131: 58 | D131: 54 | F131: -1 | G131: 49 | H131: 64 | J131: 1 | K131: 56 | L131: 58 | N131: -1 | O131: 55 | P131: 58 | R131: -1 | S131: 46 | T131: 67 | V131: 1 | W131: 64 | X131: 52 | AA131: 4 | AB131: -15 | AC131: -2 | AD131: -3 | AE131: -21 | AF131: 12 | AH131: 4 | AI131: 13.5 | AJ131: 7 | AK131: 7.5 | AL131: 16.5 | AM131: 0
A132: 2009-08-13 | B132: -1 | C132: 58 | D132: 55 | F132: 1 | G132: 50 | H132: 64 | J132: -1 | K132: 56 | L132: 59 | N132: 1 | O132: 56 | P132: 58 | R132: -1 | S132: 46 | T132: 68 | V132: 0 | W132: 64 | X132: 52 | AA132: 3 | AB132: -14 | AC132: -3 | AD132: -2 | AE132: -22 | AF132: 12 | AH132: 4.5 | AI132: 13 | AJ132: 7.5 | AK132: 7 | AL132: 17 | AM132: 0
A133: 2009-08-14 | B133: 1 | C133: 59 | D133: 55 | F133: -1 | G133: 50 | H133: 65 | J133: -1 | K133: 56 | L133: 60 | N133: 1 | O133: 57 | P133: 58 | R133: -1 | S133: 46 | T133: 69 | V133: 1 | W133: 65 | X133: 52 | AA133: 4 | AB133: -15 | AC133: -4 | AD133: -1 | AE133: -23 | AF133: 13 | AH133: 4.5 | AI133: 14 | AJ133: 8.5 | AK133: 7 | AL133: 18 | AM133: 0
A134: 2009-08-15 | B134: 1 | C134: 60 | D134: 55 | F134: -1 | G134: 50 | H134: 66 | J134: -1 | K134: 56 | L134: 61 | N134: 1 | O134: 58 | P134: 58 | R134: -1 | S134: 46 | T134: 70 | V134: 1 | W134: 66 | X134: 52 | AA134: =C134-D134 -> 5 | AB134: =G134-H134 -> -16 | AC134: =K134-L134 -> -5 | AD134: =O134-P134 -> 0 | AE134: =S134-T134 -> -24 | AF134: =W134-X134 -> 14 | AH134: =(MAX($AA134:$AF134)-AA134)/2 -> 4.5 | AI134: =(MAX($AA134:$AF134)-AB134)/2 -> 15 | AJ134: =(MAX($AA134:$AF134)-AC134)/2 -> 9.5 | AK134: =(MAX($AA134:$AF134)-AD134)/2 -> 7 | AL134: =(MAX($AA134:$AF134)-AE134)/2 -> 19 | AM134: =(MAX($AA134:$AF134)-AF134)/2 -> 0
A135: 2009-08-16 | B135: 0 | C135: =C134+IF(B135>0,B135,0) -> 60 | D135: =D134-IF(B135<0,B135,0) -> 55 | F135: -1 | G135: =G134+IF(F135>0,F135,0) -> 50 | H135: =H134-IF(F135<0,F135,0) -> 67 | J135: 1 | K135: =K134+IF(J135>0,J135,0) -> 57 | L135: =L134-IF(J135<0,J135,0) -> 61 | N135: -1 | O135: =O134+IF(N135>0,N135,0) -> 58 | P135: =P134-IF(N135<0,N135,0) -> 59 | R135: 0 | S135: 46 | T135: 70 | V135: 1 | W135: =W134+IF(V135>0,V135,0) -> 67 | X135: =X134-IF(V135<0,V135,0) -> 52 | AA135: 5 | AB135: -17 | AC135: -4 | AD135: -1 | AE135: -24 | AF135: 15 | AH135: 5 | AI135: 16 | AJ135: 9.5 | AK135: 8 | AL135: 19.5 | AM135: 0
A136: 2009-08-17 | B136: -1 | C136: 60 | D136: 56 | F136: 0 | G136: 50 | H136: 67 | J136: 0 | K136: 57 | L136: 61 | N136: -1 | O136: 58 | P136: 60 | R136: 1 | S136: 47 | T136: 70 | V136: 1 | W136: 68 | X136: 52 | AA136: 4 | AB136: -17 | AC136: -4 | AD136: -2 | AE136: -23 | AF136: 16 | AH136: 6 | AI136: 16.5 | AJ136: 10 | AK136: 9 | AL136: 19.5 | AM136: 0
A137: 2009-08-18 | B137: -1 | C137: 60 | D137: 57 | F137: -1 | G137: 50 | H137: 68 | J137: -1 | K137: 57 | L137: 62 | N137: -1 | O137: 58 | P137: 61 | R137: 1 | S137: 48 | T137: 70 | V137: -1 | W137: 68 | X137: 53 | AA137: 3 | AB137: -18 | AC137: -5 | AD137: -3 | AE137: -22 | AF137: 15 | AH137: 6 | AI137: 16.5 | AJ137: 10 | AK137: 9 | AL137: 18.5 | AM137: 0
A138: 2009-08-19 | B138: 1 | C138: 61 | D138: 57 | F138: -1 | G138: 50 | H138: 69 | J138: 1 | K138: 58 | L138: 62 | N138: -1 | O138: 58 | P138: 62 | R138: 1 | S138: 49 | T138: 70 | V138: 1 | W138: 69 | X138: 53 | AA138: 4 | AB138: -19 | AC138: -4 | AD138: -4 | AE138: -21 | AF138: 16 | AH138: 6 | AI138: 17.5 | AJ138: 10 | AK138: 10 | AL138: 18.5 | AM138: 0
A139: 2009-08-20 | B139: -1 | C139: 61 | D139: 58 | F139: 1 | G139: 51 | H139: 69 | J139: 1 | K139: 59 | L139: 62 | N139: 0 | O139: 58 | P139: 62 | R139: 0 | S139: 49 | T139: 70 | V139: 1 | W139: 70 | X139: 53 | AA139: 3 | AB139: -18 | AC139: -3 | AD139: -4 | AE139: -21 | AF139: 17 | AH139: 7 | AI139: 17.5 | AJ139: 10 | AK139: 10.5 | AL139: 19 | AM139: 0
A140: 2009-08-21 | B140: -1 | C140: 61 | D140: 59 | F140: -1 | G140: 51 | H140: 70 | J140: 1 | K140: 60 | L140: 62 | N140: 1 | O140: 59 | P140: 62 | R140: 1 | S140: 50 | T140: 70 | V140: -1 | W140: 70 | X140: 54 | AA140: 2 | AB140: -19 | AC140: -2 | AD140: -3 | AE140: -20 | AF140: 16 | AH140: 7 | AI140: 17.5 | AJ140: 9 | AK140: 9.5 | AL140: 18 | AM140: 0
A141: 2009-08-22 | B141: -1 | C141: 61 | D141: 60 | F141: -1 | G141: 51 | H141: 71 | J141: 1 | K141: 61 | L141: 62 | N141: 1 | O141: 60 | P141: 62 | R141: 1 | S141: 51 | T141: 70 | V141: 1 | W141: 71 | X141: 54 | AA141: 1 | AB141: -20 | AC141: -1 | AD141: -2 | AE141: -19 | AF141: 17 | AH141: 8 | AI141: 18.5 | AJ141: 9 | AK141: 9.5 | AL141: 18 | AM141: 0
A142: 2009-08-23 | B142: 1 | C142: 62 | D142: 60 | F142: 1 | G142: 52 | H142: 71 | J142: -1 | K142: 61 | L142: 63 | N142: -1 | O142: 60 | P142: 63 | R142: -1 | S142: =S141+IF(R142>0,R142,0) -> 51 | T142: =T141-IF(R142<0,R142,0) -> 71 | V142: 1 | W142: 72 | X142: 54 | AA142: 2 | AB142: -19 | AC142: -2 | AD142: -3 | AE142: -20 | AF142: 18 | AH142: 8 | AI142: 18.5 | AJ142: 10 | AK142: 10.5 | AL142: 19 | AM142: 0
A143: 2009-08-24 | B143: 0 | C143: 62 | D143: 60 | F143: 0 | G143: 52 | H143: 71 | J143: 0 | K143: 61 | L143: 63 | N143: 1 | O143: 61 | P143: 63 | R143: 0 | S143: 51 | T143: 71 | V143: 0 | W143: 72 | X143: 54 | AA143: 2 | AB143: -19 | AC143: -2 | AD143: -2 | AE143: -20 | AF143: 18 | AH143: 8 | AI143: 18.5 | AJ143: 10 | AK143: 10 | AL143: 19 | AM143: 0
A144: 2009-08-25 | B144: -1 | C144: 62 | D144: 61 | F144: 1 | G144: 53 | H144: 71 | J144: -1 | K144: 61 | L144: 64 | N144: -1 | O144: 61 | P144: 64 | R144: 1 | S144: 52 | T144: 71 | V144: 1 | W144: 73 | X144: 54 | AA144: 1 | AB144: -18 | AC144: -3 | AD144: -3 | AE144: -19 | AF144: 19 | AH144: 9 | AI144: 18.5 | AJ144: 11 | AK144: 11 | AL144: 19 | AM144: 0
A145: 2009-08-26 | B145: 1 | C145: 63 | D145: 61 | F145: 1 | G145: 54 | H145: 71 | J145: -1 | K145: 61 | L145: 65 | N145: -1 | O145: 61 | P145: 65 | R145: -1 | S145: 52 | T145: 72 | V145: 1 | W145: 74 | X145: 54 | AA145: 2 | AB145: -17 | AC145: -4 | AD145: -4 | AE145: -20 | AF145: 20 | AH145: 9 | AI145: 18.5 | AJ145: 12 | AK145: 12 | AL145: 20 | AM145: 0
A146: 2009-08-27 | B146: -1 | C146: 63 | D146: 62 | F146: 1 | G146: 55 | H146: 71 | J146: 1 | K146: 62 | L146: 65 | N146: -1 | O146: 61 | P146: 66 | R146: 1 | S146: 53 | T146: 72 | V146: -1 | W146: 74 | X146: 55 | AA146: 1 | AB146: -16 | AC146: -3 | AD146: -5 | AE146: -19 | AF146: 19 | AH146: 9 | AI146: 17.5 | AJ146: 11 | AK146: 12 | AL146: 19 | AM146: 0
A147: 2009-08-28 | B147: 1 | C147: 64 | D147: 62 | F147: 1 | G147: 56 | H147: 71 | J147: -1 | K147: 62 | L147: 66 | N147: 1 | O147: 62 | P147: 66 | R147: -1 | S147: 53 | T147: 73 | V147: 1 | W147: 75 | X147: 55 | AA147: 2 | AB147: -15 | AC147: -4 | AD147: -4 | AE147: -20 | AF147: 20 | AH147: 9 | AI147: 17.5 | AJ147: 12 | AK147: 12 | AL147: 20 | AM147: 0
A148: 2009-08-29 | B148: 1 | C148: 65 | D148: 62 | F148: -1 | G148: 56 | H148: 72 | J148: -1 | K148: 62 | L148: 67 | N148: 1 | O148: 63 | P148: 66 | R148: -1 | S148: 53 | T148: 74 | V148: 1 | W148: 76 | X148: 55 | AA148: 3 | AB148: -16 | AC148: -5 | AD148: -3 | AE148: -21 | AF148: 21 | AH148: 9 | AI148: 18.5 | AJ148: 13 | AK148: 12 | AL148: 21 | AM148: 0
A149: 2009-08-30 | B149: -1 | C149: 65 | D149: 63 | F149: -1 | G149: 56 | H149: 73 | J149: -1 | K149: 62 | L149: 68 | N149: 1 | O149: 64 | P149: 66 | R149: -1 | S149: 53 | T149: 75 | V149: 1 | W149: 77 | X149: 55 | AA149: 2 | AB149: -17 | AC149: -6 | AD149: -2 | AE149: -22 | AF149: 22 | AH149: 10 | AI149: 19.5 | AJ149: 14 | AK149: 12 | AL149: 22 | AM149: 0
A150: 2009-08-31 | B150: -1 | C150: 65 | D150: 64 | F150: 2 | G150: 58 | H150: 73 | J150: 1 | K150: 63 | L150: 68 | N150: 0 | O150: 64 | P150: 66 | R150: -2 | S150: 53 | T150: 77 | V150: 0 | W150: 77 | X150: 55 | AA150: 1 | AB150: -15 | AC150: -5 | AD150: -2 | AE150: -24 | AF150: 22 | AH150: 10.5 | AI150: 18.5 | AJ150: 13.5 | AK150: 12 | AL150: 23 | AM150: 0
A151: 2009-09-01 | B151: 1 | C151: 66 | D151: 64 | F151: 1 | G151: 59 | H151: 73 | J151: -1 | K151: 63 | L151: 69 | N151: -1 | O151: 64 | P151: 67 | R151: -1 | S151: 53 | T151: 78 | V151: 1 | W151: 78 | X151: 55 | AA151: 2 | AB151: -14 | AC151: -6 | AD151: -3 | AE151: -25 | AF151: 23 | AH151: 10.5 | AI151: 18.5 | AJ151: 14.5 | AK151: 13 | AL151: 24 | AM151: 0
A152: 2009-09-02 | B152: 1 | C152: 67 | D152: 64 | F152: 1 | G152: 60 | H152: 73 | J152: -1 | K152: 63 | L152: 70 | N152: -1 | O152: 64 | P152: 68 | R152: -1 | S152: 53 | T152: 79 | V152: 1 | W152: 79 | X152: 55 | AA152: 3 | AB152: -13 | AC152: -7 | AD152: -4 | AE152: -26 | AF152: 24 | AH152: 10.5 | AI152: 18.5 | AJ152: 15.5 | AK152: 14 | AL152: 25 | AM152: 0
A153: 2009-09-03 | B153: -1 | C153: 67 | D153: 65 | F153: 0 | G153: 60 | H153: 73 | J153: 0 | K153: 63 | L153: 70 | N153: 1 | O153: 65 | P153: 68 | R153: 0 | S153: 53 | T153: 79 | V153: -1 | W153: 79 | X153: 56 | AA153: 2 | AB153: -13 | AC153: -7 | AD153: -3 | AE153: -26 | AF153: 23 | AH153: 10.5 | AI153: 18 | AJ153: 15 | AK153: 13 | AL153: 24.5 | AM153: 0
A154: 2009-09-04 | B154: -1 | C154: 67 | D154: 66 | F154: 1 | G154: 61 | H154: 73 | J154: 1 | K154: 64 | L154: 70 | N154: -1 | O154: 65 | P154: 69 | R154: -1 | S154: 53 | T154: 80 | V154: 1 | W154: 80 | X154: 56 | AA154: 1 | AB154: -12 | AC154: -6 | AD154: -4 | AE154: -27 | AF154: 24 | AH154: 11.5 | AI154: 18 | AJ154: 15 | AK154: 14 | AL154: 25.5 | AM154: 0
A155: 2009-09-05 | B155: 1 | C155: =C154+IF(B155>0,B155,0) -> 68 | D155: =D154-IF(B155<0,B155,0) -> 66 | F155: 1 | G155: 62 | H155: 73 | J155: 1 | K155: 65 | L155: 70 | N155: -1 | O155: 65 | P155: 70 | R155: -1 | S155: 53 | T155: 81 | V155: 1 | W155: 81 | X155: 56 | AA155: 2 | AB155: -11 | AC155: -5 | AD155: -5 | AE155: -28 | AF155: 25 | AH155: 11.5 | AI155: 18 | AJ155: 15 | AK155: 15 | AL155: 26.5 | AM155: 0
A156: 2009-09-06 | B156: -1 | C156: 68 | D156: 67 | F156: 1 | G156: 63 | H156: 73 | J156: 1 | K156: 66 | L156: 70 | N156: 1 | O156: 66 | P156: 70 | R156: 1 | S156: 54 | T156: 81 | V156: -1 | W156: 81 | X156: 57 | AA156: 1 | AB156: -10 | AC156: -4 | AD156: -4 | AE156: -27 | AF156: 24 | AH156: 11.5 | AI156: 17 | AJ156: 14 | AK156: 14 | AL156: 25.5 | AM156: 0
A157: 2009-09-07 | B157: 1 | C157: 69 | D157: 67 | F157: -1 | G157: =G156+IF(F157>0,F157,0) -> 63 | H157: =H156-IF(F157<0,F157,0) -> 74 | J157: 1 | K157: 67 | L157: 70 | N157: -1 | O157: 66 | P157: 71 | R157: -1 | S157: 54 | T157: 82 | V157: 1 | W157: 82 | X157: 57 | AA157: 2 | AB157: -11 | AC157: -3 | AD157: -5 | AE157: -28 | AF157: 25 | AH157: 11.5 | AI157: 18 | AJ157: 14 | AK157: 15 | AL157: 26.5 | AM157: 0
A158: 2009-09-08 | B158: 1 | C158: 70 | D158: 67 | F158: -1 | G158: 63 | H158: 75 | J158: -1 | K158: 67 | L158: 71 | N158: -1 | O158: 66 | P158: 72 | R158: -1 | S158: 54 | T158: 83 | V158: 1 | W158: 83 | X158: 57 | AA158: 3 | AB158: -12 | AC158: -4 | AD158: -6 | AE158: -29 | AF158: 26 | AH158: 11.5 | AI158: 19 | AJ158: 15 | AK158: 16 | AL158: 27.5 | AM158: 0
A159: 2009-09-09 | B159: 1 | C159: 71 | D159: 67 | F159: -1 | G159: 63 | H159: 76 | J159: 1 | K159: 68 | L159: 71 | N159: -1 | O159: 66 | P159: 73 | R159: -1 | S159: 54 | T159: 84 | V159: 1 | W159: 84 | X159: 57 | AA159: 4 | AB159: -13 | AC159: -3 | AD159: -7 | AE159: -30 | AF159: 27 | AH159: 11.5 | AI159: 20 | AJ159: 15 | AK159: 17 | AL159: 28.5 | AM159: 0
A160: 2009-09-10 | B160: 0 | C160: 71 | D160: 67 | F160: -1 | G160: 63 | H160: 77 | J160: -1 | K160: 68 | L160: 72 | N160: 0 | O160: 66 | P160: 73 | R160: 0 | S160: 54 | T160: 84 | V160: 0 | W160: 84 | X160: 57 | AA160: 4 | AB160: -14 | AC160: -4 | AD160: -7 | AE160: -30 | AF160: 27 | AH160: 11.5 | AI160: 20.5 | AJ160: 15.5 | AK160: 17 | AL160: 28.5 | AM160: 0
A161: 2009-09-11 | B161: 1 | C161: 72 | D161: 67 | F161: -1 | G161: 63 | H161: 78 | J161: 1 | K161: 69 | L161: 72 | N161: 1 | O161: 67 | P161: 73 | R161: -1 | S161: 54 | T161: 85 | V161: -1 | W161: 84 | X161: 58 | AA161: 5 | AB161: -15 | AC161: -3 | AD161: -6 | AE161: -31 | AF161: 26 | AH161: 10.5 | AI161: 20.5 | AJ161: 14.5 | AK161: 16 | AL161: 28.5 | AM161: 0
A162: 2009-09-12 | B162: -1 | C162: 72 | D162: 68 | F162: 1 | G162: 64 | H162: 78 | J162: 1 | K162: 70 | L162: 72 | N162: 1 | O162: 68 | P162: 73 | R162: -1 | S162: 54 | T162: 86 | V162: -1 | W162: 84 | X162: 59 | AA162: 4 | AB162: -14 | AC162: -2 | AD162: -5 | AE162: -32 | AF162: 25 | AH162: 10.5 | AI162: 19.5 | AJ162: 13.5 | AK162: 15 | AL162: 28.5 | AM162: 0
A163: 2009-09-13 | B163: 1 | C163: 73 | D163: 68 | F163: -1 | G163: 64 | H163: 79 | J163: -1 | K163: 70 | L163: 73 | N163: 1 | O163: 69 | P163: 73 | R163: 1 | S163: 55 | T163: 86 | V163: -1 | W163: 84 | X163: 60 | AA163: 5 | AB163: -15 | AC163: -3 | AD163: -4 | AE163: -31 | AF163: 24 | AH163: 9.5 | AI163: 19.5 | AJ163: 13.5 | AK163: 14 | AL163: 27.5 | AM163: 0
A164: 2009-09-14 | B164: 1 | C164: 74 | D164: 68 | F164: 1 | G164: 65 | H164: 79 | J164: -1 | K164: 70 | L164: 74 | N164: -1 | O164: 69 | P164: 74 | R164: -1 | S164: 55 | T164: 87 | V164: 1 | W164: 85 | X164: 60 | AA164: 6 | AB164: -14 | AC164: -4 | AD164: -5 | AE164: -32 | AF164: 25 | AH164: 9.5 | AI164: 19.5 | AJ164: 14.5 | AK164: 15 | AL164: 28.5 | AM164: 0
A165: 2009-09-15 | B165: 1 | C165: 75 | D165: 68 | F165: 1 | G165: 66 | H165: 79 | J165: -1 | K165: =K164+IF(J165>0,J165,0) -> 70 | L165: =L164-IF(J165<0,J165,0) -> 75 | N165: -1 | O165: 69 | P165: 75 | R165: -1 | S165: =S164+IF(R165>0,R165,0) -> 55 | T165: =T164-IF(R165<0,R165,0) -> 88 | V165: -1 | W165: 85 | X165: 61 | AA165: 7 | AB165: -13 | AC165: -5 | AD165: -6 | AE165: -33 | AF165: 24 | AH165: 8.5 | AI165: 18.5 | AJ165: 14.5 | AK165: 15 | AL165: 28.5 | AM165: 0
A166: 2009-09-16 | B166: -1 | C166: =C165+IF(B166>0,B166,0) -> 75 | D166: =D165-IF(B166<0,B166,0) -> 69 | F166: 1 | G166: 67 | H166: 79 | J166: -1 | K166: 70 | L166: 76 | N166: 1 | O166: 70 | P166: 75 | R166: -1 | S166: 55 | T166: 89 | V166: -1 | W166: 85 | X166: 62 | AA166: =C166-D166 -> 6 | AB166: =G166-H166 -> -12 | AC166: =K166-L166 -> -6 | AD166: =O166-P166 -> -5 | AE166: =S166-T166 -> -34 | AF166: =W166-X166 -> 23 | AH166: =(MAX($AA166:$AF166)-AA166)/2 -> 8.5 | AI166: =(MAX($AA166:$AF166)-AB166)/2 -> 17.5 | AJ166: =(MAX($AA166:$AF166)-AC166)/2 -> 14.5 | AK166: =(MAX($AA166:$AF166)-AD166)/2 -> 14 | AL166: =(MAX($AA166:$AF166)-AE166)/2 -> 28.5 | AM166: =(MAX($AA166:$AF166)-AF166)/2 -> 0
A167: 2009-09-17 | B167: -1 | C167: 75 | D167: 70 | F167: 1 | G167: =G166+IF(F167>0,F167,0) -> 68 | H167: =H166-IF(F167<0,F167,0) -> 79 | J167: 0 | K167: 70 | L167: 76 | N167: 1 | O167: =O166+IF(N167>0,N167,0) -> 71 | P167: =P166-IF(N167<0,N167,0) -> 75 | R167: 0 | S167: 55 | T167: 89 | V167: 0 | W167: =W166+IF(V167>0,V167,0) -> 85 | X167: =X166-IF(V167<0,V167,0) -> 62 | AA167: 5 | AB167: -11 | AC167: -6 | AD167: -4 | AE167: -34 | AF167: 23 | AH167: 9 | AI167: 17 | AJ167: 14.5 | AK167: 13.5 | AL167: 28.5 | AM167: 0
A168: 2009-09-18 | B168: -1 | C168: 75 | D168: 71 | F168: -1 | G168: 68 | H168: 80 | J168: -1 | K168: 70 | L168: 77 | N168: 1 | O168: 72 | P168: 75 | R168: 1 | S168: 56 | T168: 89 | V168: 1 | W168: 86 | X168: 62 | AA168: 4 | AB168: -12 | AC168: -7 | AD168: -3 | AE168: -33 | AF168: 24 | AH168: 10 | AI168: 18 | AJ168: 15.5 | AK168: 13.5 | AL168: 28.5 | AM168: 0
A169: 2009-09-19 | B169: -1 | C169: 75 | D169: 72 | F169: -1 | G169: 68 | H169: 81 | J169: -1 | K169: 70 | L169: 78 | N169: 1 | O169: 73 | P169: 75 | R169: -1 | S169: 56 | T169: 90 | V169: 1 | W169: 87 | X169: 62 | AA169: 3 | AB169: -13 | AC169: -8 | AD169: -2 | AE169: -34 | AF169: 25 | AH169: 11 | AI169: 19 | AJ169: 16.5 | AK169: 13.5 | AL169: 29.5 | AM169: 0
A170: 2009-09-20 | B170: 1 | C170: 76 | D170: 72 | F170: 1 | G170: 69 | H170: 81 | J170: -1 | K170: 70 | L170: 79 | N170: 1 | O170: 74 | P170: 75 | R170: -1 | S170: 56 | T170: 91 | V170: -1 | W170: 87 | X170: 63 | AA170: 4 | AB170: -12 | AC170: -9 | AD170: -1 | AE170: -35 | AF170: 24 | AH170: 10 | AI170: 18 | AJ170: 16.5 | AK170: 12.5 | AL170: 29.5 | AM170: 0
A171: 2009-09-21 | B171: 1 | C171: 77 | D171: 72 | F171: 0 | G171: 69 | H171: 81 | J171: -1 | K171: 70 | L171: 80 | N171: -1 | O171: 74 | P171: 76 | R171: -1 | S171: 56 | T171: 92 | V171: 1 | W171: 88 | X171: 63 | AA171: 5 | AB171: -12 | AC171: -10 | AD171: -2 | AE171: -36 | AF171: 25 | AH171: 10 | AI171: 18.5 | AJ171: 17.5 | AK171: 13.5 | AL171: 30.5 | AM171: 0
A172: 2009-09-22 | B172: 1 | C172: 78 | D172: 72 | F172: 1 | G172: 70 | H172: 81 | J172: -1 | K172: 70 | L172: 81 | N172: -1 | O172: 74 | P172: 77 | R172: -1 | S172: 56 | T172: 93 | V172: 1 | W172: 89 | X172: 63 | AA172: 6 | AB172: -11 | AC172: -11 | AD172: -3 | AE172: -37 | AF172: 26 | AH172: 10 | AI172: 18.5 | AJ172: 18.5 | AK172: 14.5 | AL172: 31.5 | AM172: 0
A173: 2009-09-23 | B173: -1 | C173: 78 | D173: 73 | F173: 1 | G173: 71 | H173: 81 | J173: 1 | K173: 71 | L173: 81 | N173: 1 | O173: 75 | P173: 77 | R173: -1 | S173: 56 | T173: 94 | V173: -1 | W173: 89 | X173: 64 | AA173: 5 | AB173: -10 | AC173: -10 | AD173: -2 | AE173: -38 | AF173: 25 | AH173: 10 | AI173: 17.5 | AJ173: 17.5 | AK173: 13.5 | AL173: 31.5 | AM173: 0
A174: 2009-09-24 | B174: 1 | C174: 79 | D174: 73 | F174: 1 | G174: 72 | H174: 81 | J174: 0 | K174: 71 | L174: 81 | N174: -1 | O174: 75 | P174: 78 | R174: -1 | S174: 56 | T174: 95 | V174: 0 | W174: 89 | X174: 64 | AA174: 6 | AB174: -9 | AC174: -10 | AD174: -3 | AE174: -39 | AF174: 25 | AH174: 9.5 | AI174: 17 | AJ174: 17.5 | AK174: 14 | AL174: 32 | AM174: 0
A175: 2009-09-25 | B175: 1 | C175: 80 | D175: 73 | F175: 1 | G175: 73 | H175: 81 | J175: -1 | K175: 71 | L175: 82 | N175: 1 | O175: 76 | P175: 78 | R175: 1 | S175: 57 | T175: 95 | V175: -1 | W175: 89 | X175: 65 | AA175: 7 | AB175: -8 | AC175: -11 | AD175: -2 | AE175: -38 | AF175: 24 | AH175: 8.5 | AI175: 16 | AJ175: 17.5 | AK175: 13 | AL175: 31 | AM175: 0
A176: 2009-09-26 | B176: 1 | C176: =C175+IF(B176>0,B176,0) -> 81 | D176: =D175-IF(B176<0,B176,0) -> 73 | F176: 1 | G176: 74 | H176: 81 | J176: -1 | K176: 71 | L176: 83 | N176: 1 | O176: 77 | P176: 78 | R176: -1 | S176: 57 | T176: 96 | V176: 1 | W176: 90 | X176: 65 | AA176: 8 | AB176: -7 | AC176: -12 | AD176: -1 | AE176: -39 | AF176: 25 | AH176: 8.5 | AI176: 16 | AJ176: 18.5 | AK176: 13 | AL176: 32 | AM176: 0
A177: 2009-09-27 | B177: -1 | C177: 81 | D177: 74 | F177: -1 | G177: 74 | H177: 82 | J177: 1 | K177: 72 | L177: 83 | N177: -1 | O177: 77 | P177: 79 | R177: 1 | S177: 58 | T177: 96 | V177: -1 | W177: 90 | X177: 66 | AA177: 7 | AB177: -8 | AC177: -11 | AD177: -2 | AE177: -38 | AF177: 24 | AH177: 8.5 | AI177: 16 | AJ177: 17.5 | AK177: 13 | AL177: 31 | AM177: 0
A178: 2009-09-28 | B178: 0 | C178: 81 | D178: 74 | F178: 0 | G178: 74 | H178: 82 | J178: 1 | K178: 73 | L178: 83 | N178: 0 | O178: 77 | P178: 79 | R178: 1 | S178: 59 | T178: 96 | V178: 0 | W178: 90 | X178: 66 | AA178: 7 | AB178: -8 | AC178: -10 | AD178: -2 | AE178: -37 | AF178: 24 | AH178: 8.5 | AI178: 16 | AJ178: 17 | AK178: 13 | AL178: 30.5 | AM178: 0
A179: 2009-09-29 | B179: 1 | C179: 82 | D179: 74 | F179: 1 | G179: 75 | H179: 82 | J179: -1 | K179: 73 | L179: 84 | N179: -1 | O179: 77 | P179: 80 | R179: -1 | S179: 59 | T179: 97 | V179: -1 | W179: 90 | X179: 67 | AA179: 8 | AB179: -7 | AC179: -11 | AD179: -3 | AE179: -38 | AF179: 23 | AH179: 7.5 | AI179: 15 | AJ179: 17 | AK179: 13 | AL179: 30.5 | AM179: 0
A180: 2009-09-30 | B180: -2 | C180: 82 | D180: 76 | F180: 1 | G180: 76 | H180: 82 | J180: -1 | K180: 73 | L180: 85 | N180: -1 | O180: 77 | P180: 81 | R180: 2 | S180: 61 | T180: 97 | V180: -1 | W180: 90 | X180: 68 | AA180: 6 | AB180: -6 | AC180: -12 | AD180: -4 | AE180: -36 | AF180: 22 | AH180: 8 | AI180: 14 | AJ180: 17 | AK180: 13 | AL180: 29 | AM180: 0
A181: 2009-10-01 | B181: 0 | C181: 82 | D181: 76 | F181: -1 | G181: 76 | H181: 83 | J181: 1 | K181: 74 | L181: 85 | N181: -1 | O181: 77 | P181: 82 | R181: 0 | S181: 61 | T181: 97 | V181: 1 | W181: 91 | X181: 68 | AA181: 6 | AB181: -7 | AC181: -11 | AD181: -5 | AE181: -36 | AF181: 23 | AH181: 8.5 | AI181: 15 | AJ181: 17 | AK181: 14 | AL181: 29.5 | AM181: 0 | AP181: Team | AQ181: GB | AR181: %
A182: 2009-10-02 | B182: -1 | C182: 82 | D182: 77 | F182: -1 | G182: 76 | H182: 84 | J182: -1 | K182: 74 | L182: 86 | N182: 1 | O182: 78 | P182: 82 | R182: 1 | S182: 62 | T182: 97 | V182: -1 | W182: 91 | X182: 69 | AA182: 5 | AB182: -8 | AC182: -12 | AD182: -4 | AE182: -35 | AF182: 22 | AH182: 8.5 | AI182: 15 | AJ182: 17 | AK182: 13 | AL182: 28.5 | AM182: 0 | AP182: =AM$1 -> STL | AQ182: =AM$185 -> 0 | AR182: =AM$187 -> 0.5617283951
A183: 2009-10-03 | B183: 1 | C183: 83 | D183: 77 | F183: 1 | G183: 77 | H183: 84 | J183: -1 | K183: 74 | L183: 87 | N183: 1 | O183: 79 | P183: 82 | R183: -1 | S183: 62 | T183: 98 | V183: -1 | W183: 91 | X183: 70 | AA183: 6 | AB183: -7 | AC183: -13 | AD183: -3 | AE183: -36 | AF183: 21 | AH183: 7.5 | AI183: 14 | AJ183: 17 | AK183: 12 | AL183: 28.5 | AM183: 0 | AP183: =AH$1 -> CHC | AQ183: =AH$185 -> 7.5 | AR183: =AH$187 -> 0.5155279503
A184: 2009-10-04 | B184: -1 | C184: 83 | D184: 78 | F184: 1 | G184: 78 | H184: 84 | J184: -1 | K184: 74 | L184: 88 | N184: 1 | O184: 80 | P184: 82 | R184: -1 | S184: 62 | T184: 99 | V184: -1 | W184: 91 | X184: 71 | AA184: 5 | AB184: -6 | AC184: -14 | AD184: -2 | AE184: -37 | AF184: 20 | AH184: 7.5 | AI184: 13 | AJ184: 17 | AK184: 11 | AL184: 28.5 | AM184: 0 | AP184: =AK$1 -> MIL | AQ184: =AK$185 -> 11 | AR184: =AK$187 -> 0.4938271605
A185: 2009-10-05 | B185: 0 | C185: 83 | D185: 78 | F185: 0 | G185: 78 | H185: 84 | J185: 0 | K185: 74 | L185: 88 | N185: 0 | O185: 80 | P185: 82 | R185: 0 | S185: 62 | T185: 99 | V185: 0 | W185: 91 | X185: 71 | AA185: 5 | AB185: -6 | AC185: -14 | AD185: -2 | AE185: -37 | AF185: 20 | AH185: 7.5 | AI185: 13 | AJ185: 17 | AK185: 11 | AL185: 28.5 | AM185: 0 | AP185: =AI$1 -> CIN | AQ185: =AI$185 -> 13 | AR185: =AI$187 -> 0.4814814815
AP186: =AJ$1 -> HOU | AQ186: =AJ$185 -> 17 | AR186: =AJ$187 -> 0.4567901235
AH187: =C185/(C185+D185) -> 0.5155279503 | AI187: =G185/(G185+H185) -> 0.4814814815 | AJ187: =K185/(K185+L185) -> 0.4567901235 | AK187: =O185/(O185+P185) -> 0.4938271605 | AL187: =S185/(S185+T185) -> 0.3850931677 | AM187: =W185/(W185+X185) -> 0.5617283951 | AP187: =AL$1 -> PIT | AQ187: =AL$185 -> 28.5 | AR187: =AL$187 -> 0.3850931677
